{"text_format":"1","workbook":"xlsx","n_sheets":4,"sheets":["R400, R500","R500S","ПО Astra","История изменений"],"not_rendered":{"charts":0,"images":0,"macros":0,"external_links":0,"defined_names":3,"comments":3,"pivot_tables":0},"unopened":[],"bounds":{"document_bytes":16777216,"sheet_cells":100000,"rows_first":2000,"rows_last":500,"rows_between":2000,"halvings":0,"cell_chars":16384,"cell_head_chars":4096},"cells_cut":0,"cells_raw":0,"read":"whole","date_system":"1900"}

{"sheet":"R400, R500","index":0,"n_rows":261,"n_cols":16,"rows_kept":261,"cut":false,"hidden":false,"merged":[]}
["ver. 2024.04.08"]
["Наименование","Каталожный номер","Крейт 1","Крейт 2","Крейт 3","Крейт 4","Крейт 5","Крейт 6","Крейт 7","Крейт 8","Крейт 9","ЗИП","Всего количество","Use ?","ЗИП",0]
["Regul R500",null,null,null,null,null,null,null,null,null,null,null,0]
["Модуль центрального процессора, 1 GHz, 512 Mb RAM, 1 Gb Flash, RS-232, RS-485, 2 x Ethernet RJ45","R500 CU 00 021-000-AAA",null,null,null,null,null,null,null,null,null,{"$f":"ROUNDUP(SUM(C4:K4)*$P$2,0)","v":0},{"$f":"SUM(C4:L4)","v":0}]
["Модуль центрального процессора, 1 GHz, 512 Mb RAM, 1 Gb Flash, RS-232, RS-485, 2 x Ethernet SFP","R500 CU 00 031-000-AAA",null,null,null,null,null,null,null,null,null,0,0]
["Модуль центрального процессора, 1,33 GHz (2 ядра), 2 Gb RAM, 1x4 Gb SSD, RS-232, RS-485, 4 x Ethernet RJ45, 2 х USB","R500 CU 00 051-009-AAA",null,null,null,null,null,null,null,null,null,0,0]
["Модуль центрального процессора, 1,33 GHz (2 ядра), 2 Gb RAM, 1x16 Gb SSD, RS-232, RS-485, 4 x Ethernet RJ45, 2 х USB","R500 CU 00 051-010-AAA",null,null,null,null,null,null,null,null,null,0,0]
["Модуль центрального процессора, 1,33 GHz (2 ядра), 2 Gb RAM, 1x32 Gb SSD, RS-232, RS-485, 4 x Ethernet RJ45, 2 х USB","R500 CU 00 051-011-AAA",null,null,null,null,null,null,null,null,null,0,0]
["Модуль центрального процессора, 1,33 GHz (2 ядра), 2 Gb RAM, 1x64 Gb SSD, RS-232, RS-485, 4 x Ethernet RJ45, 2 х USB","R500 CU 00 051-012-AAA",null,null,null,null,null,null,null,null,null,0,0]
["Модуль центрального процессора, 1,93 GHz (4 ядра), 2 Gb RAM, 1x4 Gb SSD, RS-232, RS-485, 4 x Ethernet RJ45, 2 х USB","R500 CU 00 051-013-AAA",null,null,null,null,null,null,null,null,null,0,0]
["Модуль центрального процессора, 1,93 GHz (4 ядра), 2 Gb RAM, 1x16 Gb SSD, RS-232, RS-485, 4 x Ethernet RJ45, 2 х USB","R500 CU 00 051-014-AAA",null,null,null,null,null,null,null,null,null,0,0]
["Модуль центрального процессора, 1,93 GHz (4 ядра), 2 Gb RAM, 1x32 Gb SSD, RS-232, RS-485, 4 x Ethernet RJ45, 2 х USB","R500 CU 00 051-015-AAA",null,null,null,null,null,null,null,null,null,0,0]
["Модуль центрального процессора, 1,93 GHz (4 ядра), 2 Gb RAM, 1x64 Gb SSD, RS-232, RS-485, 4 x Ethernet RJ45, 2 х USB","R500 CU 00 051-016-AAA",null,null,null,null,null,null,null,null,null,0,0]
["Модуль центрального процессора, 1,33 GHz (2 ядра), 2 Gb RAM, 1x4 Gb SSD, RS-232, RS-485, 4 x Ethernet RJ45, 2 х USB, GPS/GLONASS","R500 CU 00 051-000-AAA",null,null,null,null,null,null,null,null,null,0,0]
["Модуль центрального процессора, 1,33 GHz (2 ядра), 2 Gb RAM, 1x16 Gb SSD, RS-232, RS-485, 4 x Ethernet RJ45, 2 х USB, GPS/GLONASS","R500 CU 00 051-001-AAA",null,null,null,null,null,null,null,null,null,0,0]
["Модуль центрального процессора, 1,33 GHz (2 ядра), 2 Gb RAM, 1x32 Gb SSD, RS-232, RS-485, 4 x Ethernet RJ45, 2 х USB, GPS/GLONASS","R500 CU 00 051-002-AAA",null,null,null,null,null,null,null,null,null,0,0]
["Модуль центрального процессора, 1,33 GHz (2 ядра), 2 Gb RAM, 1x64 Gb SSD, RS-232, RS-485, 4 x Ethernet RJ45, 2 х USB, GPS/GLONASS","R500 CU 00 051-003-AAA",null,null,null,null,null,null,null,null,null,0,0]
["Модуль центрального процессора, 1,93 GHz (4 ядра), 2 Gb RAM, 1x4 Gb SSD, RS-232, RS-485, 4 x Ethernet RJ45, 2 х USB, GPS/GLONASS","R500 CU 00 051-004-AAA",null,null,null,null,null,null,null,null,null,0,0]
["Модуль центрального процессора, 1,93 GHz (4 ядра), 2 Gb RAM, 1x16 Gb SSD, RS-232, RS-485, 4 x Ethernet RJ45, 2 х USB, GPS/GLONASS","R500 CU 00 051-005-AAA",null,null,null,null,null,null,null,null,null,0,0]
["Модуль центрального процессора, 1,93 GHz (4 ядра), 2 Gb RAM, 1x32 Gb SSD, RS-232, RS-485, 4 x Ethernet RJ45, 2 х USB, GPS/GLONASS","R500 CU 00 051-006-AAA",null,null,null,null,null,null,null,null,null,0,0]
["Модуль центрального процессора, 1,93 GHz (4 ядра), 2 Gb RAM, 1x64 Gb SSD, RS-232, RS-485, 4 x Ethernet RJ45, 2 х USB, GPS/GLONASS","R500 CU 00 051-007-AAA",null,null,null,null,null,null,null,null,null,0,0]
["Модуль центрального процессора, 1,33 GHz (2 ядра) / 8GB eMMCD flash, 2 Gb RAM, 1x4 Gb SSD, RS-232, RS-485, 4 x Ethernet RJ45, 2 x USB, GPS/GLONASS","R500 CU 00 051-008-AAA",null,null,null,null,null,null,null,null,null,0,0]
["Модуль центрального процессора, 1,33 GHz (2 ядра), 2 Gb RAM, 1x4 Gb SSD, RS-232, RS-485, 2 x Ethernet RJ45, 2 x Ethernet SFP, 2 х USB","R500 CU 00 061-009-AAA",null,null,null,null,null,null,null,null,null,0,0]
["Модуль центрального процессора, 1,33 GHz (2 ядра), 2 Gb RAM, 1x16 Gb SSD, RS-232, RS-485, 2 x Ethernet RJ45, 2 x Ethernet SFP, 2 х USB,","R500 CU 00 061-010-AAA",null,null,null,null,null,null,null,null,null,0,0]
["Модуль центрального процессора, 1,33 GHz (2 ядра), 2 Gb RAM, 1x32 Gb SSD, RS-232, RS-485, 2 x Ethernet RJ45, 2 x Ethernet SFP, 2 х USB","R500 CU 00 061-011-AAA",null,null,null,null,null,null,null,null,null,0,0]
["Модуль центрального процессора, 1,33 GHz (2 ядра), 2 Gb RAM, 1x64 Gb SSD, RS-232, RS-485, 2 x Ethernet RJ45, 2 x Ethernet SFP, 2 х USB","R500 CU 00 061-012-AAA",null,null,null,null,null,null,null,null,null,0,0]
["Модуль центрального процессора, 1,93 GHz (4 ядра), 2 Gb RAM, 1x4 Gb SSD, RS-232, RS-485, 2 x Ethernet RJ45, 2 x Ethernet SFP, 2 х USB","R500 CU 00 061-013-AAA",null,null,null,null,null,null,null,null,null,0,0]
["Модуль центрального процессора, 1,93 GHz (4 ядра), 2 Gb RAM, 1x16 Gb SSD, RS-232, RS-485, 2 x Ethernet RJ45, 2 x Ethernet SFP, 2 х USB","R500 CU 00 061-014-AAA",null,null,null,null,null,null,null,null,null,0,0]
["Модуль центрального процессора, 1,93 GHz (4 ядра), 2 Gb RAM, 1x32 Gb SSD, RS-232, RS-485, 2 x Ethernet RJ45, 2 x Ethernet SFP, 2 х USB","R500 CU 00 061-015-AAA",null,null,null,null,null,null,null,null,null,0,0]
["Модуль центрального процессора, 1,93 GHz (4 ядра), 2 Gb RAM, 1x64 Gb SSD, RS-232, RS-485, 2 x Ethernet RJ45, 2 x Ethernet SFP, 2 х USB","R500 CU 00 061-016-AAA",null,null,null,null,null,null,null,null,null,0,0]
["Модуль центрального процессора, 1,33 GHz (2 ядра), 2 Gb RAM, 1x4 Gb SSD, RS-232, RS-485, 2 x Ethernet RJ45, 2 x Ethernet SFP, 2 х USB, GPS/GLONASS","R500 CU 00 061-000-AAA",null,null,null,null,null,null,null,null,null,0,0]
["Модуль центрального процессора, 1,33 GHz (2 ядра), 2 Gb RAM, 1x16 Gb SSD, RS-232, RS-485, 2 x Ethernet RJ45, 2 x Ethernet SFP, 2 х USB, GPS/GLONASS","R500 CU 00 061-001-AAA",null,null,null,null,null,null,null,null,null,0,0]
["Модуль центрального процессора, 1,33 GHz (2 ядра), 2 Gb RAM, 1x32 Gb SSD, RS-232, RS-485, 2 x Ethernet RJ45, 2 x Ethernet SFP, 2 х USB, GPS/GLONASS","R500 CU 00 061-002-AAA",null,null,null,null,null,null,null,null,null,0,0]
["Модуль центрального процессора, 1,33 GHz (2 ядра), 2 Gb RAM, 1x64 Gb SSD, RS-232, RS-485, 2 x Ethernet RJ45, 2 x Ethernet SFP, 2 х USB, GPS/GLONASS","R500 CU 00 061-003-AAA",null,null,null,null,null,null,null,null,null,0,0]
["Модуль центрального процессора, 1,93 GHz (4 ядра), 2 Gb RAM, 1x4 Gb SSD, RS-232, RS-485, 2 x Ethernet RJ45, 2 x Ethernet SFP, 2 х USB, GPS/GLONASS","R500 CU 00 061-004-AAA",null,null,null,null,null,null,null,null,null,0,0]
["Модуль центрального процессора, 1,93 GHz (4 ядра), 2 Gb RAM, 1x16 Gb SSD, RS-232, RS-485, 2 x Ethernet RJ45, 2 x Ethernet SFP, 2 х USB, GPS/GLONASS","R500 CU 00 061-005-AAA",null,null,null,null,null,null,null,null,null,{"$f":"ROUNDUP(SUM(C36:K36)*$P$2,0)","v":0},0]
["Модуль центрального процессора, 1,93 GHz (4 ядра), 2 Gb RAM, 1x32 Gb SSD, RS-232, RS-485, 2 x Ethernet RJ45, 2 x Ethernet SFP, 2 х USB, GPS/GLONASS","R500 CU 00 061-006-AAA",null,null,null,null,null,null,null,null,null,0,0]
["Модуль центрального процессора, 1,93 GHz (4 ядра), 2 Gb RAM, 1x64 Gb SSD, RS-232, RS-485, 2 x Ethernet RJ45, 2 x Ethernet SFP, 2 х USB, GPS/GLONASS","R500 CU 00 061-007-AAA",null,null,null,null,null,null,null,null,null,0,0]
["Модуль центрального процессора, 1,33 GHz (2 ядра), 2 Gb RAM, 1x4 Gb SSD, RS-232, RS-485, 2 x Ethernet RJ45, 2 x Ethernet SFP, 2 х USB, DVI","R500 CU 00 071-009-AAA",null,null,null,null,null,null,null,null,null,0,0]
["Модуль центрального процессора, 1,33 GHz (2 ядра), 2 Gb RAM, 1x16 Gb SSD, RS-232, RS-485, 2 x Ethernet RJ45, 2 x Ethernet SFP, 2 х USB, DVI","R500 CU 00 071-010-AAA",null,null,null,null,null,null,null,null,null,0,0]
["Модуль центрального процессора, 1,33 GHz (2 ядра), 2 Gb RAM, 1x32 Gb SSD, RS-232, RS-485, 2 x Ethernet RJ45, 2 x Ethernet SFP, 2 х USB, DVI","R500 CU 00 071-011-AAA",null,null,null,null,null,null,null,null,null,0,0]
["Модуль центрального процессора, 1,33 GHz (2 ядра), 2 Gb RAM, 1x64 Gb SSD, RS-232, RS-485, 2 x Ethernet RJ45, 2 x Ethernet SFP, 2 х USB, DVI","R500 CU 00 071-012-AAA",null,null,null,null,null,null,null,null,null,0,0]
["Модуль центрального процессора, 1,93 GHz (4 ядра), 2 Gb RAM, 1x4 Gb SSD, RS-232, RS-485, 2 x Ethernet RJ45, 2 x Ethernet SFP, 2 х USB, DVI","R500 CU 00 071-013-AAA",null,null,null,null,null,null,null,null,null,0,0]
["Модуль центрального процессора, 1,93 GHz (4 ядра), 2 Gb RAM, 1x16 Gb SSD, RS-232, RS-485, 2 x Ethernet RJ45, 2 x Ethernet SFP, 2 х USB, DVI","R500 CU 00 071-014-AAA",null,null,null,null,null,null,null,null,null,0,0]
["Модуль центрального процессора, 1,93 GHz (4 ядра), 2 Gb RAM, 1x32 Gb SSD, RS-232, RS-485, 2 x Ethernet RJ45, 2 x Ethernet SFP, 2 х USB, DVI","R500 CU 00 071-015-AAA",null,null,null,null,null,null,null,null,null,0,0]
["Модуль центрального процессора, 1,93 GHz (4 ядра), 2 Gb RAM, 1x64 Gb SSD, RS-232, RS-485, 2 x Ethernet RJ45, 2 x Ethernet SFP, 2 х USB, DVI","R500 CU 00 071-016-AAA",null,null,null,null,null,null,null,null,null,0,0]
["Модуль центрального процессора, 1,33 GHz (2 ядра), 2 Gb RAM, 1x4 Gb SSD, RS-232, RS-485, 2 x Ethernet RJ45, 2 x Ethernet SFP, 2 х USB, DVI, GPS/GLONASS","R500 CU 00 071-000-AAA",null,null,null,null,null,null,null,null,null,0,0]
["Модуль центрального процессора, 1,33 GHz (2 ядра), 2 Gb RAM, 1x16 Gb SSD, RS-232, RS-485, 2 x Ethernet RJ45, 2 x Ethernet SFP, 2 х USB, DVI, GPS/GLONASS","R500 CU 00 071-001-AAA",null,null,null,null,null,null,null,null,null,0,{"$f":"SUM(C48:L48)","v":0}]
["Модуль центрального процессора, 1,33 GHz (2 ядра), 2 Gb RAM, 1x32 Gb SSD, RS-232, RS-485, 2 x Ethernet RJ45, 2 x Ethernet SFP, 2 х USB, DVI, GPS/GLONASS","R500 CU 00 071-002-AAA",null,null,null,null,null,null,null,null,null,0,0]
["Модуль центрального процессора, 1,33 GHz (2 ядра), 2 Gb RAM, 1x64 Gb SSD, RS-232, RS-485, 2 x Ethernet RJ45, 2 x Ethernet SFP, 2 х USB, DVI, GPS/GLONASS","R500 CU 00 071-003-AAA",null,null,null,null,null,null,null,null,null,0,0]
["Модуль центрального процессора, 1,93 GHz (4 ядра), 2 Gb RAM, 1x4 Gb SSD, RS-232, RS-485, 2 x Ethernet RJ45, 2 x Ethernet SFP, 2 х USB, DVI, GPS/GLONASS","R500 CU 00 071-004-AAA",null,null,null,null,null,null,null,null,null,0,0]
["Модуль центрального процессора, 1,93 GHz (4 ядра), 2 Gb RAM, 1x16 Gb SSD, RS-232, RS-485, 2 x Ethernet RJ45, 2 x Ethernet SFP, 2 х USB, DVI, GPS/GLONASS","R500 CU 00 071-005-AAA",null,null,null,null,null,null,null,null,null,0,0]
["Модуль центрального процессора, 1,93 GHz (4 ядра), 2 Gb RAM, 1x32 Gb SSD, RS-232, RS-485, 2 x Ethernet RJ45, 2 x Ethernet SFP, 2 х USB, DVI, GPS/GLONASS","R500 CU 00 071-006-AAA",null,null,null,null,null,null,null,null,null,0,0]
["Модуль центрального процессора, 1,93 GHz (4 ядра), 2 Gb RAM, 1x64 Gb SSD, RS-232, RS-485, 2 x Ethernet RJ45, 2 x Ethernet SFP, 2 х USB, DVI, GPS/GLONASS","R500 CU 00 071-007-AAA",null,null,null,null,null,null,null,null,null,0,0]
["Модуль центрального процессора, 1,33 GHz (2 ядра), со-процессор RegulBus, 2 Gb RAM, 1x8 Gb SSD, RS-232, RS-485, 4 x Ethernet RJ45, 2 х USB","R500 CU 00 151-000-AAA",null,null,null,null,null,null,null,null,null,0,0]
["Модуль центрального процессора, 1,33 GHz (2 ядра), со-процессор RegulBus, 2 Gb RAM, 1x16 Gb SSD, RS-232, RS-485, 4 x Ethernet RJ45, 2 х USB","R500 CU 00 151-001-AAA",null,null,null,null,null,null,null,null,null,0,0]
["Модуль центрального процессора, 1,33 GHz (2 ядра), со-процессор RegulBus, 2 Gb RAM, 1x32 Gb SSD, RS-232, RS-485, 4 x Ethernet RJ45, 2 х USB","R500 CU 00 151-002-AAA",null,null,null,null,null,null,null,null,null,0,0]
["Модуль центрального процессора, 1,33 GHz (2 ядра), со-процессор RegulBus, 2 Gb RAM, 1x64 Gb SSD, RS-232, RS-485, 4 x Ethernet RJ45, 2 х USB","R500 CU 00 151-003-AAA",null,null,null,null,null,null,null,null,null,0,0]
["Модуль центрального процессора, 1,93 GHz (4 ядра), со-процессор RegulBus, 2 Gb RAM, 1x8 Gb SSD, RS-232, RS-485, 4 x Ethernet RJ45, 2 х USB","R500 CU 00 151-004-AAA",null,null,null,null,null,null,null,null,null,0,0]
["Модуль центрального процессора, 1,93 GHz (4 ядра), со-процессор RegulBus, 2 Gb RAM, 1x16 Gb SSD, RS-232, RS-485, 4 x Ethernet RJ45, 2 х USB","R500 CU 00 151-005-AAA",null,null,null,null,null,null,null,null,null,0,0]
["Модуль центрального процессора, 1,93 GHz (4 ядра), со-процессор RegulBus, 2 Gb RAM, 1x32 Gb SSD, RS-232, RS-485, 4 x Ethernet RJ45, 2 х USB","R500 CU 00 151-006-AAA",null,null,null,null,null,null,null,null,null,0,0]
["Модуль центрального процессора, 1,93 GHz (4 ядра), со-процессор RegulBus, 2 Gb RAM, 1x64 Gb SSD, RS-232, RS-485, 4 x Ethernet RJ45, 2 х USB","R500 CU 00 151-007-AAA",null,null,null,null,null,null,null,null,null,0,0]
["Модуль центрального процессора, 1,33 GHz (2 ядра), со-процессор RegulBus, 2 Gb RAM, 1x8 Gb SSD, RS-232, RS-485, 4 x Ethernet RJ45, 2 х USB, GPS/GLONASS","R500 CU 00 151-008-AAA",null,null,null,null,null,null,null,null,null,0,0]
["Модуль центрального процессора, 1,93 GHz (4 ядра), со-процессор RegulBus, 2 Gb RAM, 1x8 Gb SSD, RS-232, RS-485, 4 x Ethernet RJ45, 2 х USB, GPS/GLONASS","R500 CU 00 151-012-AAA",null,null,null,null,null,null,null,null,null,0,0]
["Модуль центрального процессора, 1,33 GHz (2 ядра), со-процессор RegulBus, 2 Gb RAM, 1x8 Gb SSD, RS-232, RS-485, 2 x Ethernet RJ45, 2 x Ethernet SFP, 2 х USB","R500 CU 00 161-000-AAA",null,null,null,null,null,null,null,null,null,0,0]
["Модуль центрального процессора, 1,33 GHz (2 ядра), со-процессор RegulBus, 2 Gb RAM, 1x16 Gb SSD, RS-232, RS-485, 2 x Ethernet RJ45, 2 x Ethernet SFP, 2 х USB","R500 CU 00 161-001-AAA",null,null,null,null,null,null,null,null,null,0,0]
["Модуль центрального процессора, 1,33 GHz (2 ядра), со-процессор RegulBus, 2 Gb RAM, 1x32 Gb SSD, RS-232, RS-485, 2 x Ethernet RJ45, 2 x Ethernet SFP, 2 х USB","R500 CU 00 161-002-AAA",null,null,null,null,null,null,null,null,null,0,0]
["Модуль центрального процессора, 1,33 GHz (2 ядра), со-процессор RegulBus, 2 Gb RAM, 1x64 Gb SSD, RS-232, RS-485, 2 x Ethernet RJ45, 2 x Ethernet SFP, 2 х USB","R500 CU 00 161-003-AAA",null,null,null,null,null,null,null,null,null,{"$f":"ROUNDUP(SUM(C68:K68)*$P$2,0)","v":0},0]
["Модуль центрального процессора, 1,93 GHz (4 ядра), со-процессор RegulBus, 2 Gb RAM, 1x8 Gb SSD, RS-232, RS-485, 2 x Ethernet RJ45, 2 x Ethernet SFP, 2 х USB","R500 CU 00 161-004-AAA",null,null,null,null,null,null,null,null,null,0,0]
["Модуль центрального процессора, 1,93 GHz (4 ядра), со-процессор RegulBus, 2 Gb RAM, 1x16 Gb SSD, RS-232, RS-485, 2 x Ethernet RJ45, 2 x Ethernet SFP, 2 х USB","R500 CU 00 161-005-AAA",null,null,null,null,null,null,null,null,null,0,0]
["Модуль центрального процессора, 1,93 GHz (4 ядра), со-процессор RegulBus, 2 Gb RAM, 1x32 Gb SSD, RS-232, RS-485, 2 x Ethernet RJ45, 2 x Ethernet SFP, 2 х USB","R500 CU 00 161-006-AAA",null,null,null,null,null,null,null,null,null,0,0]
["Модуль центрального процессора, 1,93 GHz (4 ядра), со-процессор RegulBus, 2 Gb RAM, 1x64 Gb SSD, RS-232, RS-485, 2 x Ethernet RJ45, 2 x Ethernet SFP, 2 х USB","R500 CU 00 161-007-AAA",null,null,null,null,null,null,null,null,null,0,0]
["Модуль центрального процессора, 1,33 GHz (2 ядра), со-процессор RegulBus, 2 Gb RAM, 1x8 Gb SSD, RS-232, RS-485, 2 x Ethernet RJ45, 2 x Ethernet SFP, 2 х USB, GPS/GLONASS","R500 CU 00 161-008-AAA",null,null,null,null,null,null,null,null,null,0,0]
["Модуль центрального процессора, 1,93 GHz (4 ядра), со-процессор RegulBus, 2 Gb RAM, 1x8 Gb SSD, RS-232, RS-485, 2 x Ethernet RJ45, 2 x Ethernet SFP, 2 х USB, GPS/GLONASS","R500 CU 00 161-012-AAA",null,null,null,null,null,null,null,null,null,0,0]
["Модуль центрального процессора, 1,33 GHz (2 ядра), со-процессор RegulBus, 2 Gb RAM, 1x8 Gb SSD, RS-232, RS-485, 2 x Ethernet RJ45, 2 x Ethernet SFP, 2 х USB, DVI","R500 CU 00 171-000-AAA",null,null,null,null,null,null,null,null,null,0,0]
["Модуль центрального процессора, 1,33 GHz (2 ядра), со-процессор RegulBus, 2 Gb RAM, 1x16 Gb SSD, RS-232, RS-485, 2 x Ethernet RJ45, 2 x Ethernet SFP, 2 х USB, DVI","R500 CU 00 171-001-AAA",null,null,null,null,null,null,null,null,null,0,0]
["Модуль центрального процессора, 1,33 GHz (2 ядра), со-процессор RegulBus, 2 Gb RAM, 1x32 Gb SSD, RS-232, RS-485, 2 x Ethernet RJ45, 2 x Ethernet SFP, 2 х USB, DVI","R500 CU 00 171-002-AAA",null,null,null,null,null,null,null,null,null,0,0]
["Модуль центрального процессора, 1,33 GHz (2 ядра), со-процессор RegulBus, 2 Gb RAM, 1x64 Gb SSD, RS-232, RS-485, 2 x Ethernet RJ45, 2 x Ethernet SFP, 2 х USB, DVI","R500 CU 00 171-003-AAA",null,null,null,null,null,null,null,null,null,0,0]
["Модуль центрального процессора, 1,93 GHz (4 ядра), со-процессор RegulBus, 2 Gb RAM, 1x8 Gb SSD, RS-232, RS-485, 2 x Ethernet RJ45, 2 x Ethernet SFP, 2 х USB, DVI","R500 CU 00 171-004-AAA",null,null,null,null,null,null,null,null,null,0,0]
["Модуль центрального процессора, 1,93 GHz (4 ядра), со-процессор RegulBus, 2 Gb RAM, 1x16 Gb SSD, RS-232, RS-485, 2 x Ethernet RJ45, 2 x Ethernet SFP, 2 х USB, DVI","R500 CU 00 171-005-AAA",null,null,null,null,null,null,null,null,null,0,0]
["Модуль центрального процессора, 1,93 GHz (4 ядра), со-процессор RegulBus, 2 Gb RAM, 1x32 Gb SSD, RS-232, RS-485, 2 x Ethernet RJ45, 2 x Ethernet SFP, 2 х USB, DVI","R500 CU 00 171-006-AAA",null,null,null,null,null,null,null,null,null,0,0]
["Модуль центрального процессора, 1,93 GHz (4 ядра), со-процессор RegulBus, 2 Gb RAM, 1x64 Gb SSD, RS-232, RS-485, 2 x Ethernet RJ45, 2 x Ethernet SFP, 2 х USB, DVI","R500 CU 00 171-007-AAA",null,null,null,null,null,null,null,null,null,0,0]
["Модуль центрального процессора, 1,33 GHz (2 ядра), со-процессор RegulBus, 2 Gb RAM, 1x8 Gb SSD, RS-232, RS-485, 2 x Ethernet RJ45, 2 x Ethernet SFP, 2 х USB, DVI, GPS/GLONASS","R500 CU 00 171-008-AAA",null,null,null,null,null,null,null,null,null,0,0]
["Модуль центрального процессора, 1,93 GHz (4 ядра), со-процессор RegulBus, 2 Gb RAM, 1x8 Gb SSD, RS-232, RS-485, 2 x Ethernet RJ45, 2 x Ethernet SFP, 2 х USB, DVI, GPS/GLONASS","R500 CU 00 171-012-AAA",null,null,null,null,null,null,null,null,null,0,0]
["Модуль центрального процессора, 1,33 GHz (2 ядра), со-процессор RegulBus, 2 Gb RAM, 1x8 Gb SSD, RS-232, RS-485, 4 x Ethernet RJ45, 2 х USB, DVI","R500 CU 00 181-000-AAA",null,null,null,null,null,null,null,null,null,0,0]
["Модуль центрального процессора, 1,33 GHz (2 ядра), со-процессор RegulBus, 2 Gb RAM, 1x16 Gb SSD, RS-232, RS-485, 4 x Ethernet RJ45, 2 х USB, DVI","R500 CU 00 181-001-AAA",null,null,null,null,null,null,null,null,null,0,0]
["Модуль центрального процессора, 1,33 GHz (2 ядра), со-процессор RegulBus, 2 Gb RAM, 1x32 Gb SSD, RS-232, RS-485, 4 x Ethernet RJ45, 2 х USB, DVI","R500 CU 00 181-002-AAA",null,null,null,null,null,null,null,null,null,0,0]
["Модуль центрального процессора, 1,33 GHz (2 ядра), со-процессор RegulBus, 2 Gb RAM, 1x64 Gb SSD, RS-232, RS-485, 4 x Ethernet RJ45, 2 х USB, DVI","R500 CU 00 181-003-AAA",null,null,null,null,null,null,null,null,null,0,0]
["Модуль центрального процессора, 1,93 GHz (4 ядра), со-процессор RegulBus, 2 Gb RAM, 1x8 Gb SSD, RS-232, RS-485, 4 x Ethernet RJ45, 2 х USB, DVI","R500 CU 00 181-004-AAA",null,null,null,null,null,null,null,null,null,0,0]
["Модуль центрального процессора, 1,93 GHz (4 ядра), со-процессор RegulBus, 2 Gb RAM, 1x16 Gb SSD, RS-232, RS-485, 4 x Ethernet RJ45, 2 х USB, DVI","R500 CU 00 181-005-AAA",null,null,null,null,null,null,null,null,null,0,0]
["Модуль центрального процессора, 1,93 GHz (4 ядра), со-процессор RegulBus, 2 Gb RAM, 1x32 Gb SSD, RS-232, RS-485, 2 x Ethernet RJ45, 4 x Ethernet RJ45, 2 х USB, DVI","R500 CU 00 181-006-AAA",null,null,null,null,null,null,null,null,null,0,0]
["Модуль центрального процессора, 1,93 GHz (4 ядра), со-процессор RegulBus, 2 Gb RAM, 1x64 Gb SSD, RS-232, RS-485, 4 x Ethernet RJ45, 2 х USB, DVI","R500 CU 00 181-007-AAA",null,null,null,null,null,null,null,null,null,0,0]
["Модуль центрального процессора, 1,33 GHz (2 ядра), со-процессор RegulBus, 2 Gb RAM, 1x8 Gb SSD, RS-232, RS-485, 4 x Ethernet RJ45, 2 х USB, DVI, GPS/GLONASS","R500 CU 00 181-008-AAA",null,null,null,null,null,null,null,null,null,0,0]
["Модуль центрального процессора, 1,93 GHz (4 ядра), со-процессор RegulBus, 2 Gb RAM, 1x8 Gb SSD, RS-232, RS-485, 4 x Ethernet RJ45, 2 х USB, DVI, GPS/GLONASS","R500 CU 00 181-012-AAA",null,null,null,null,null,null,null,null,null,0,0]
["Модуль центрального процессора, 1 GHz, 512 Mb RAM, 1 Gb Flash, RS-232, RS-485, 2 x Ethernet RJ45, поддержка WEB-визуализации","R500 CU 00 021(W)-000-AAA",null,null,null,null,null,null,null,null,null,0,0]
["Модуль центрального процессора, 1 GHz, 512 Mb RAM, 1 Gb Flash, RS-232, RS-485, 2 x Ethernet SFP, поддержка WEB-визуализации","R500 CU 00 031(W)-000-AAA",null,null,null,null,null,null,null,null,null,0,0]
["Модуль центрального процессора, 1,33 GHz (2 ядра), 2 Gb RAM, 1x4 Gb SSD, RS-232, RS-485, 4 x Ethernet RJ45, 2 х USB, поддержка WEB-визуализации","R500 CU 00 051(W)-009-AAA",null,null,null,null,null,null,null,null,null,0,0]
["Модуль центрального процессора, 1,33 GHz (2 ядра), 2 Gb RAM, 1x16 Gb SSD, RS-232, RS-485, 4 x Ethernet RJ45, 2 х USB, поддержка WEB-визуализации","R500 CU 00 051(W)-010-AAA",null,null,null,null,null,null,null,null,null,0,0]
["Модуль центрального процессора, 1,33 GHz (2 ядра), 2 Gb RAM, 1x32 Gb SSD, RS-232, RS-485, 4 x Ethernet RJ45, 2 х USB, поддержка WEB-визуализации","R500 CU 00 051(W)-011-AAA",null,null,null,null,null,null,null,null,null,0,0]
["Модуль центрального процессора, 1,33 GHz (2 ядра), 2 Gb RAM, 1x64 Gb SSD, RS-232, RS-485, 4 x Ethernet RJ45, 2 х USB, поддержка WEB-визуализации","R500 CU 00 051(W)-012-AAA",null,null,null,null,null,null,null,null,null,{"$f":"ROUNDUP(SUM(C100:K100)*$P$2,0)","v":0},0]
["Модуль центрального процессора, 1,93 GHz (4 ядра), 2 Gb RAM, 1x4 Gb SSD, RS-232, RS-485, 4 x Ethernet RJ45, 2 х USB, поддержка WEB-визуализации","R500 CU 00 051(W)-013-AAA",null,null,null,null,null,null,null,null,null,0,0]
["Модуль центрального процессора, 1,93 GHz (4 ядра), 2 Gb RAM, 1x16 Gb SSD, RS-232, RS-485, 4 x Ethernet RJ45, 2 х USB, поддержка WEB-визуализации","R500 CU 00 051(W)-014-AAA",null,null,null,null,null,null,null,null,null,0,0]
["Модуль центрального процессора, 1,93 GHz (4 ядра), 2 Gb RAM, 1x32 Gb SSD, RS-232, RS-485, 4 x Ethernet RJ45, 2 х USB, поддержка WEB-визуализации","R500 CU 00 051(W)-015-AAA",null,null,null,null,null,null,null,null,null,0,0]
["Модуль центрального процессора, 1,93 GHz (4 ядра), 2 Gb RAM, 1x64 Gb SSD, RS-232, RS-485, 4 x Ethernet RJ45, 2 х USB, поддержка WEB-визуализации","R500 CU 00 051(W)-016-AAA",null,null,null,null,null,null,null,null,null,0,0]
["Модуль центрального процессора, 1,33 GHz (2 ядра), 2 Gb RAM, 1x4 Gb SSD, RS-232, RS-485, 4 x Ethernet RJ45, 2 х USB, GPS/GLONASS, поддержка WEB-визуализации","R500 CU 00 051(W)-000-AAA",null,null,null,null,null,null,null,null,null,0,0]
["Модуль центрального процессора, 1,33 GHz (2 ядра), 2 Gb RAM, 1x16 Gb SSD, RS-232, RS-485, 4 x Ethernet RJ45, 2 х USB, GPS/GLONASS, поддержка WEB-визуализации","R500 CU 00 051(W)-001-AAA",null,null,null,null,null,null,null,null,null,0,0]
["Модуль центрального процессора, 1,33 GHz (2 ядра), 2 Gb RAM, 1x32 Gb SSD, RS-232, RS-485, 4 x Ethernet RJ45, 2 х USB, GPS/GLONASS, поддержка WEB-визуализации","R500 CU 00 051(W)-002-AAA",null,null,null,null,null,null,null,null,null,0,0]
["Модуль центрального процессора, 1,33 GHz (2 ядра), 2 Gb RAM, 1x64 Gb SSD, RS-232, RS-485, 4 x Ethernet RJ45, 2 х USB, GPS/GLONASS, поддержка WEB-визуализации","R500 CU 00 051(W)-003-AAA",null,null,null,null,null,null,null,null,null,0,0]
["Модуль центрального процессора, 1,93 GHz (4 ядра), 2 Gb RAM, 1x4 Gb SSD, RS-232, RS-485, 4 x Ethernet RJ45, 2 х USB, GPS/GLONASS, поддержка WEB-визуализации","R500 CU 00 051(W)-004-AAA",null,null,null,null,null,null,null,null,null,0,0]
["Модуль центрального процессора, 1,93 GHz (4 ядра), 2 Gb RAM, 1x16 Gb SSD, RS-232, RS-485, 4 x Ethernet RJ45, 2 х USB, GPS/GLONASS, поддержка WEB-визуализации","R500 CU 00 051(W)-005-AAA",null,null,null,null,null,null,null,null,null,0,0]
["Модуль центрального процессора, 1,93 GHz (4 ядра), 2 Gb RAM, 1x32 Gb SSD, RS-232, RS-485, 4 x Ethernet RJ45, 2 х USB, GPS/GLONASS, поддержка WEB-визуализации","R500 CU 00 051(W)-006-AAA",null,null,null,null,null,null,null,null,null,0,0]
["Модуль центрального процессора, 1,93 GHz (4 ядра), 2 Gb RAM, 1x64 Gb SSD, RS-232, RS-485, 4 x Ethernet RJ45, 2 х USB, GPS/GLONASS, поддержка WEB-визуализации","R500 CU 00 051(W)-007-AAA",null,null,null,null,null,null,null,null,null,0,0]
["Модуль центрального процессора, 1,33 GHz (2 ядра), 2 Gb RAM, 1x4 Gb SSD, RS-232, RS-485, 2 x Ethernet RJ45, 2 x Ethernet SFP, 2 х USB, поддержка WEB-визуализации","R500 CU 00 061(W)-009-AAA",null,null,null,null,null,null,null,null,null,0,0]
["Модуль центрального процессора, 1,33 GHz (2 ядра), 2 Gb RAM, 1x16 Gb SSD, RS-232, RS-485, 2 x Ethernet RJ45, 2 x Ethernet SFP, 2 х USB, поддержка WEB-визуализации","R500 CU 00 061(W)-010-AAA",null,null,null,null,null,null,null,null,null,0,0]
["Модуль центрального процессора, 1,33 GHz (2 ядра), 2 Gb RAM, 1x32 Gb SSD, RS-232, RS-485, 2 x Ethernet RJ45, 2 x Ethernet SFP, 2 х USB, поддержка WEB-визуализации","R500 CU 00 061(W)-011-AAA",null,null,null,null,null,null,null,null,null,0,0]
["Модуль центрального процессора, 1,33 GHz (2 ядра), 2 Gb RAM, 1x64 Gb SSD, RS-232, RS-485, 2 x Ethernet RJ45, 2 x Ethernet SFP, 2 х USB, поддержка WEB-визуализации","R500 CU 00 061(W)-012-AAA",null,null,null,null,null,null,null,null,null,0,0]
["Модуль центрального процессора, 1,93 GHz (4 ядра), 2 Gb RAM, 1x4 Gb SSD, RS-232, RS-485, 2 x Ethernet RJ45, 2 x Ethernet SFP, 2 х USB, поддержка WEB-визуализации","R500 CU 00 061(W)-013-AAA",null,null,null,null,null,null,null,null,null,0,0]
["Модуль центрального процессора, 1,93 GHz (4 ядра), 2 Gb RAM, 1x16 Gb SSD, RS-232, RS-485, 2 x Ethernet RJ45, 2 x Ethernet SFP, 2 х USB, поддержка WEB-визуализации","R500 CU 00 061(W)-014-AAA",null,null,null,null,null,null,null,null,null,0,0]
["Модуль центрального процессора, 1,93 GHz (4 ядра), 2 Gb RAM, 1x32 Gb SSD, RS-232, RS-485, 2 x Ethernet RJ45, 2 x Ethernet SFP, 2 х USB, поддержка WEB-визуализации","R500 CU 00 061(W)-015-AAA",null,null,null,null,null,null,null,null,null,0,0]
["Модуль центрального процессора, 1,93 GHz (4 ядра), 2 Gb RAM, 1x64 Gb SSD, RS-232, RS-485, 2 x Ethernet RJ45, 2 x Ethernet SFP, 2 х USB, поддержка WEB-визуализации","R500 CU 00 061(W)-016-AAA",null,null,null,null,null,null,null,null,null,0,0]
["Модуль центрального процессора, 1,33 GHz (2 ядра), 2 Gb RAM, 1x4 Gb SSD, RS-232, RS-485, 2 x Ethernet RJ45, 2 x Ethernet SFP, 2 х USB, GPS/GLONASS, поддержка WEB-визуализации","R500 CU 00 061(W)-000-AAA",null,null,null,null,null,null,null,null,null,0,0]
["Модуль центрального процессора, 1,33 GHz (2 ядра), 2 Gb RAM, 1x16 Gb SSD, RS-232, RS-485, 2 x Ethernet RJ45, 2 x Ethernet SFP, 2 х USB, GPS/GLONASS, поддержка WEB-визуализации","R500 CU 00 061(W)-001-AAA",null,null,null,null,null,null,null,null,null,0,0]
["Модуль центрального процессора, 1,33 GHz (2 ядра), 2 Gb RAM, 1x32 Gb SSD, RS-232, RS-485, 2 x Ethernet RJ45, 2 x Ethernet SFP, 2 х USB, GPS/GLONASS, поддержка WEB-визуализации","R500 CU 00 061(W)-002-AAA",null,null,null,null,null,null,null,null,null,0,0]
["Модуль центрального процессора, 1,33 GHz (2 ядра), 2 Gb RAM, 1x64 Gb SSD, RS-232, RS-485, 2 x Ethernet RJ45, 2 x Ethernet SFP, 2 х USB, GPS/GLONASS, поддержка WEB-визуализации","R500 CU 00 061(W)-003-AAA",null,null,null,null,null,null,null,null,null,0,0]
["Модуль центрального процессора, 1,93 GHz (4 ядра), 2 Gb RAM, 1x4 Gb SSD, RS-232, RS-485, 2 x Ethernet RJ45, 2 x Ethernet SFP, 2 х USB, GPS/GLONASS, поддержка WEB-визуализации","R500 CU 00 061(W)-004-AAA",null,null,null,null,null,null,null,null,null,0,0]
["Модуль центрального процессора, 1,93 GHz (4 ядра), 2 Gb RAM, 1x16 Gb SSD, RS-232, RS-485, 2 x Ethernet RJ45, 2 x Ethernet SFP, 2 х USB, GPS/GLONASS, поддержка WEB-визуализации","R500 CU 00 061(W)-005-AAA",null,null,null,null,null,null,null,null,null,0,0]
["Модуль центрального процессора, 1,93 GHz (4 ядра), 2 Gb RAM, 1x32 Gb SSD, RS-232, RS-485, 2 x Ethernet RJ45, 2 x Ethernet SFP, 2 х USB, GPS/GLONASS, поддержка WEB-визуализации","R500 CU 00 061(W)-006-AAA",null,null,null,null,null,null,null,null,null,0,0]
["Модуль центрального процессора, 1,93 GHz (4 ядра), 2 Gb RAM, 1x64 Gb SSD, RS-232, RS-485, 2 x Ethernet RJ45, 2 x Ethernet SFP, 2 х USB, GPS/GLONASS, поддержка WEB-визуализации","R500 CU 00 061(W)-007-AAA",null,null,null,null,null,null,null,null,null,0,{"$f":"SUM(C128:L128)","v":0}]
["Модуль центрального процессора, 1,33 GHz (2 ядра), 2 Gb RAM, 1x4 Gb SSD, RS-232, RS-485, 2 x Ethernet RJ45, 2 x Ethernet SFP, 2 х USB, DVI, поддержка WEB-визуализации","R500 CU 00 071(W)-009-AAA",null,null,null,null,null,null,null,null,null,0,0]
["Модуль центрального процессора, 1,33 GHz (2 ядра), 2 Gb RAM, 1x16 Gb SSD, RS-232, RS-485, 2 x Ethernet RJ45, 2 x Ethernet SFP, 2 х USB, DVI, поддержка WEB-визуализации","R500 CU 00 071(W)-010-AAA",null,null,null,null,null,null,null,null,null,0,0]
["Модуль центрального процессора, 1,33 GHz (2 ядра), 2 Gb RAM, 1x32 Gb SSD, RS-232, RS-485, 2 x Ethernet RJ45, 2 x Ethernet SFP, 2 х USB, DVI, поддержка WEB-визуализации","R500 CU 00 071(W)-011-AAA",null,null,null,null,null,null,null,null,null,0,0]
["Модуль центрального процессора, 1,33 GHz (2 ядра), 2 Gb RAM, 1x64 Gb SSD, RS-232, RS-485, 2 x Ethernet RJ45, 2 x Ethernet SFP, 2 х USB, DVI, поддержка WEB-визуализации","R500 CU 00 071(W)-012-AAA",null,null,null,null,null,null,null,null,null,{"$f":"ROUNDUP(SUM(C132:K132)*$P$2,0)","v":0},0]
["Модуль центрального процессора, 1,93 GHz (4 ядра), 2 Gb RAM, 1x4 Gb SSD, RS-232, RS-485, 2 x Ethernet RJ45, 2 x Ethernet SFP, 2 х USB, DVI, поддержка WEB-визуализации","R500 CU 00 071(W)-013-AAA",null,null,null,null,null,null,null,null,null,0,0]
["Модуль центрального процессора, 1,93 GHz (4 ядра), 2 Gb RAM, 1x16 Gb SSD, RS-232, RS-485, 2 x Ethernet RJ45, 2 x Ethernet SFP, 2 х USB, DVI, поддержка WEB-визуализации","R500 CU 00 071(W)-014-AAA",null,null,null,null,null,null,null,null,null,0,0]
["Модуль центрального процессора, 1,93 GHz (4 ядра), 2 Gb RAM, 1x32 Gb SSD, RS-232, RS-485, 2 x Ethernet RJ45, 2 x Ethernet SFP, 2 х USB, DVI, поддержка WEB-визуализации","R500 CU 00 071(W)-015-AAA",null,null,null,null,null,null,null,null,null,0,0]
["Модуль центрального процессора, 1,93 GHz (4 ядра), 2 Gb RAM, 1x64 Gb SSD, RS-232, RS-485, 2 x Ethernet RJ45, 2 x Ethernet SFP, 2 х USB, DVI, поддержка WEB-визуализации","R500 CU 00 071(W)-016-AAA",null,null,null,null,null,null,null,null,null,0,0]
["Модуль центрального процессора, 1,33 GHz (2 ядра), 2 Gb RAM, 1x4 Gb SSD, RS-232, RS-485, 2 x Ethernet RJ45, 2 x Ethernet SFP, 2 х USB, DVI, GPS/GLONASS, поддержка WEB-визуализации","R500 CU 00 071(W)-000-AAA",null,null,null,null,null,null,null,null,null,0,0]
["Модуль центрального процессора, 1,33 GHz (2 ядра), 2 Gb RAM, 1x16 Gb SSD, RS-232, RS-485, 2 x Ethernet RJ45, 2 x Ethernet SFP, 2 х USB, DVI, GPS/GLONASS, поддержка WEB-визуализации","R500 CU 00 071(W)-001-AAA",null,null,null,null,null,null,null,null,null,0,0]
["Модуль центрального процессора, 1,33 GHz (2 ядра), 2 Gb RAM, 1x32 Gb SSD, RS-232, RS-485, 2 x Ethernet RJ45, 2 x Ethernet SFP, 2 х USB, DVI, GPS/GLONASS, поддержка WEB-визуализации","R500 CU 00 071(W)-002-AAA",null,null,null,null,null,null,null,null,null,0,0]
["Модуль центрального процессора, 1,33 GHz (2 ядра), 2 Gb RAM, 1x64 Gb SSD, RS-232, RS-485, 2 x Ethernet RJ45, 2 x Ethernet SFP, 2 х USB, DVI, GPS/GLONASS, поддержка WEB-визуализации","R500 CU 00 071(W)-003-AAA",null,null,null,null,null,null,null,null,null,0,0]
["Модуль центрального процессора, 1,93 GHz (4 ядра), 2 Gb RAM, 1x4 Gb SSD, RS-232, RS-485, 2 x Ethernet RJ45, 2 x Ethernet SFP, 2 х USB, DVI, GPS/GLONASS, поддержка WEB-визуализации","R500 CU 00 071(W)-004-AAA",null,null,null,null,null,null,null,null,null,0,0]
["Модуль центрального процессора, 1,93 GHz (4 ядра), 2 Gb RAM, 1x16 Gb SSD, RS-232, RS-485, 2 x Ethernet RJ45, 2 x Ethernet SFP, 2 х USB, DVI, GPS/GLONASS, поддержка WEB-визуализации","R500 CU 00 071(W)-005-AAA",null,null,null,null,null,null,null,null,null,0,0]
["Модуль центрального процессора, 1,93 GHz (4 ядра), 2 Gb RAM, 1x32 Gb SSD, RS-232, RS-485, 2 x Ethernet RJ45, 2 x Ethernet SFP, 2 х USB, DVI, GPS/GLONASS, поддержка WEB-визуализации","R500 CU 00 071(W)-006-AAA",null,null,null,null,null,null,null,null,null,0,0]
["Модуль центрального процессора, 1,93 GHz (4 ядра), 2 Gb RAM, 1x64 Gb SSD, RS-232, RS-485, 2 x Ethernet RJ45, 2 x Ethernet SFP, 2 х USB, DVI, GPS/GLONASS, поддержка WEB-визуализации","R500 CU 00 071(W)-007-AAA",null,null,null,null,null,null,null,null,null,0,0]
["Модуль центрального процессора, 1,33 GHz (2 ядра), со-процессор RegulBus, 2 Gb RAM, 1x8 Gb SSD, RS-232, RS-485, 4 x Ethernet RJ45, 2 х USB, поддержка WEB-визуализации","R500 CU 00 151(W)-000-AAA",null,null,null,null,null,null,null,null,null,0,0]
["Модуль центрального процессора, 1,33 GHz (2 ядра), со-процессор RegulBus, 2 Gb RAM, 1x16 Gb SSD, RS-232, RS-485, 4 x Ethernet RJ45, 2 х USB, поддержка WEB-визуализации","R500 CU 00 151(W)-001-AAA",null,null,null,null,null,null,null,null,null,0,0]
["Модуль центрального процессора, 1,33 GHz (2 ядра), со-процессор RegulBus, 2 Gb RAM, 1x32 Gb SSD, RS-232, RS-485, 4 x Ethernet RJ45, 2 х USB, поддержка WEB-визуализации","R500 CU 00 151(W)-002-AAA",null,null,null,null,null,null,null,null,null,0,0]
["Модуль центрального процессора, 1,33 GHz (2 ядра), со-процессор RegulBus, 2 Gb RAM, 1x64 Gb SSD, RS-232, RS-485, 4 x Ethernet RJ45, 2 х USB, поддержка WEB-визуализации","R500 CU 00 151(W)-003-AAA",null,null,null,null,null,null,null,null,null,0,0]
["Модуль центрального процессора, 1,93 GHz (4 ядра), со-процессор RegulBus, 2 Gb RAM, 1x8 Gb SSD, RS-232, RS-485, 4 x Ethernet RJ45, 2 х USB, поддержка WEB-визуализации","R500 CU 00 151(W)-004-AAA",null,null,null,null,null,null,null,null,null,0,0]
["Модуль центрального процессора, 1,93 GHz (4 ядра), со-процессор RegulBus, 2 Gb RAM, 1x16 Gb SSD, RS-232, RS-485, 4 x Ethernet RJ45, 2 х USB, поддержка WEB-визуализации","R500 CU 00 151(W)-005-AAA",null,null,null,null,null,null,null,null,null,0,0]
["Модуль центрального процессора, 1,93 GHz (4 ядра), со-процессор RegulBus, 2 Gb RAM, 1x32 Gb SSD, RS-232, RS-485, 4 x Ethernet RJ45, 2 х USB, поддержка WEB-визуализации","R500 CU 00 151(W)-006-AAA",null,null,null,null,null,null,null,null,null,0,0]
["Модуль центрального процессора, 1,93 GHz (4 ядра), со-процессор RegulBus, 2 Gb RAM, 1x64 Gb SSD, RS-232, RS-485, 4 x Ethernet RJ45, 2 х USB, поддержка WEB-визуализации","R500 CU 00 151(W)-007-AAA",null,null,null,null,null,null,null,null,null,0,0]
["Модуль центрального процессора, 1,33 GHz (2 ядра), со-процессор RegulBus, 2 Gb RAM, 1x8 Gb SSD, RS-232, RS-485, 4 x Ethernet RJ45, 2 х USB, GPS/GLONASS, поддержка WEB-визуализации","R500 CU 00 151(W)-008-AAA",null,null,null,null,null,null,null,null,null,0,0]
["Модуль центрального процессора, 1,93 GHz (4 ядра), со-процессор RegulBus, 2 Gb RAM, 1x8 Gb SSD, RS-232, RS-485, 4 x Ethernet RJ45, 2 х USB, GPS/GLONASS, поддержка WEB-визуализации","R500 CU 00 151(W)-012-AAA",null,null,null,null,null,null,null,null,null,0,0]
["Модуль центрального процессора, 1,33 GHz (2 ядра), со-процессор RegulBus, 2 Gb RAM, 1x8 Gb SSD, RS-232, RS-485, 2 x Ethernet RJ45, 2 x Ethernet SFP, 2 х USB, поддержка WEB-визуализации","R500 CU 00 161(W)-000-AAA",null,null,null,null,null,null,null,null,null,0,0]
["Модуль центрального процессора, 1,33 GHz (2 ядра), со-процессор RegulBus, 2 Gb RAM, 1x16 Gb SSD, RS-232, RS-485, 2 x Ethernet RJ45, 2 x Ethernet SFP, 2 х US, поддержка WEB-визуализацииB","R500 CU 00 161(W)-001-AAA",null,null,null,null,null,null,null,null,null,0,0]
["Модуль центрального процессора, 1,33 GHz (2 ядра), со-процессор RegulBus, 2 Gb RAM, 1x32 Gb SSD, RS-232, RS-485, 2 x Ethernet RJ45, 2 x Ethernet SFP, 2 х USB, поддержка WEB-визуализации","R500 CU 00 161(W)-002-AAA",null,null,null,null,null,null,null,null,null,0,0]
["Модуль центрального процессора, 1,33 GHz (2 ядра), со-процессор RegulBus, 2 Gb RAM, 1x64 Gb SSD, RS-232, RS-485, 2 x Ethernet RJ45, 2 x Ethernet SFP, 2 х USB, поддержка WEB-визуализации","R500 CU 00 161(W)-003-AAA",null,null,null,null,null,null,null,null,null,0,0]
["Модуль центрального процессора, 1,93 GHz (4 ядра), со-процессор RegulBus, 2 Gb RAM, 1x8 Gb SSD, RS-232, RS-485, 2 x Ethernet RJ45, 2 x Ethernet SFP, 2 х USB, поддержка WEB-визуализации","R500 CU 00 161(W)-004-AAA",null,null,null,null,null,null,null,null,null,0,0]
["Модуль центрального процессора, 1,93 GHz (4 ядра), со-процессор RegulBus, 2 Gb RAM, 1x16 Gb SSD, RS-232, RS-485, 2 x Ethernet RJ45, 2 x Ethernet SFP, 2 х USB, поддержка WEB-визуализации","R500 CU 00 161(W)-005-AAA",null,null,null,null,null,null,null,null,null,0,0]
["Модуль центрального процессора, 1,93 GHz (4 ядра), со-процессор RegulBus, 2 Gb RAM, 1x32 Gb SSD, RS-232, RS-485, 2 x Ethernet RJ45, 2 x Ethernet SFP, 2 х USB, поддержка WEB-визуализации","R500 CU 00 161(W)-006-AAA",null,null,null,null,null,null,null,null,null,0,0]
["Модуль центрального процессора, 1,93 GHz (4 ядра), со-процессор RegulBus, 2 Gb RAM, 1x64 Gb SSD, RS-232, RS-485, 2 x Ethernet RJ45, 2 x Ethernet SFP, 2 х USB, поддержка WEB-визуализации","R500 CU 00 161(W)-007-AAA",null,null,null,null,null,null,null,null,null,0,0]
["Модуль центрального процессора, 1,33 GHz (2 ядра), со-процессор RegulBus, 2 Gb RAM, 1x8 Gb SSD, RS-232, RS-485, 2 x Ethernet RJ45, 2 x Ethernet SFP, 2 х USB, GPS/GLONASS, поддержка WEB-визуализации","R500 CU 00 161(W)-008-AAA",null,null,null,null,null,null,null,null,null,0,0]
["Модуль центрального процессора, 1,93 GHz (4 ядра), со-процессор RegulBus, 2 Gb RAM, 1x8 Gb SSD, RS-232, RS-485, 2 x Ethernet RJ45, 2 x Ethernet SFP, 2 х USB, GPS/GLONASS, поддержка WEB-визуализации","R500 CU 00 161(W)-012-AAA",null,null,null,null,null,null,null,null,null,{"$f":"ROUNDUP(SUM(C164:K164)*$P$2,0)","v":0},0]
["Модуль центрального процессора, 1,33 GHz (2 ядра), со-процессор RegulBus, 2 Gb RAM, 1x8 Gb SSD, RS-232, RS-485, 2 x Ethernet RJ45, 2 x Ethernet SFP, 2 х USB, DVI, поддержка WEB-визуализации","R500 CU 00 171(W)-000-AAA",null,null,null,null,null,null,null,null,null,0,0]
["Модуль центрального процессора, 1,33 GHz (2 ядра), со-процессор RegulBus, 2 Gb RAM, 1x16 Gb SSD, RS-232, RS-485, 2 x Ethernet RJ45, 2 x Ethernet SFP, 2 х USB, DVI, поддержка WEB-визуализации","R500 CU 00 171(W)-001-AAA",null,null,null,null,null,null,null,null,null,0,0]
["Модуль центрального процессора, 1,33 GHz (2 ядра), со-процессор RegulBus, 2 Gb RAM, 1x32 Gb SSD, RS-232, RS-485, 2 x Ethernet RJ45, 2 x Ethernet SFP, 2 х USB, DVI, поддержка WEB-визуализации","R500 CU 00 171(W)-002-AAA",null,null,null,null,null,null,null,null,null,0,0]
["Модуль центрального процессора, 1,33 GHz (2 ядра), со-процессор RegulBus, 2 Gb RAM, 1x64 Gb SSD, RS-232, RS-485, 2 x Ethernet RJ45, 2 x Ethernet SFP, 2 х USB, DVI, поддержка WEB-визуализации","R500 CU 00 171(W)-003-AAA",null,null,null,null,null,null,null,null,null,0,0]
["Модуль центрального процессора, 1,93 GHz (4 ядра), со-процессор RegulBus, 2 Gb RAM, 1x8 Gb SSD, RS-232, RS-485, 2 x Ethernet RJ45, 2 x Ethernet SFP, 2 х USB, DVI, поддержка WEB-визуализации","R500 CU 00 171(W)-004-AAA",null,null,null,null,null,null,null,null,null,0,0]
["Модуль центрального процессора, 1,93 GHz (4 ядра), со-процессор RegulBus, 2 Gb RAM, 1x16 Gb SSD, RS-232, RS-485, 2 x Ethernet RJ45, 2 x Ethernet SFP, 2 х USB, DVI, поддержка WEB-визуализации","R500 CU 00 171(W)-005-AAA",null,null,null,null,null,null,null,null,null,0,0]
["Модуль центрального процессора, 1,93 GHz (4 ядра), со-процессор RegulBus, 2 Gb RAM, 1x32 Gb SSD, RS-232, RS-485, 2 x Ethernet RJ45, 2 x Ethernet SFP, 2 х USB, DVI, поддержка WEB-визуализации","R500 CU 00 171(W)-006-AAA",null,null,null,null,null,null,null,null,null,0,0]
["Модуль центрального процессора, 1,93 GHz (4 ядра), со-процессор RegulBus, 2 Gb RAM, 1x64 Gb SSD, RS-232, RS-485, 2 x Ethernet RJ45, 2 x Ethernet SFP, 2 х USB, DVI, поддержка WEB-визуализации","R500 CU 00 171(W)-007-AAA",null,null,null,null,null,null,null,null,null,0,0]
["Модуль центрального процессора, 1,33 GHz (2 ядра), со-процессор RegulBus, 2 Gb RAM, 1x8 Gb SSD, RS-232, RS-485, 2 x Ethernet RJ45, 2 x Ethernet SFP, 2 х USB, DVI, GPS/GLONASS, поддержка WEB-визуализации","R500 CU 00 171(W)-008-AAA",null,null,null,null,null,null,null,null,null,0,0]
["Модуль центрального процессора, 1,93 GHz (4 ядра), со-процессор RegulBus, 2 Gb RAM, 1x8 Gb SSD, RS-232, RS-485, 2 x Ethernet RJ45, 2 x Ethernet SFP, 2 х USB, DVI, GPS/GLONASS, поддержка WEB-визуализации","R500 CU 00 171(W)-012-AAA",null,null,null,null,null,null,null,null,null,0,0]
["Модуль центрального процессора, 1,33 GHz (2 ядра), со-процессор RegulBus, 2 Gb RAM, 1x8 Gb SSD, RS-232, RS-485, 4 x Ethernet RJ45, 2 х USB, DVI, поддержка WEB-визуализации","R500 CU 00 181(W)-000-AAA",null,null,null,null,null,null,null,null,null,0,0]
["Модуль центрального процессора, 1,33 GHz (2 ядра), со-процессор RegulBus, 2 Gb RAM, 1x16 Gb SSD, RS-232, RS-485, 4 x Ethernet RJ45, 2 х USB, DVI, поддержка WEB-визуализации ","R500 CU 00 181(W)-001-AAA",null,null,null,null,null,null,null,null,null,0,0]
["Модуль центрального процессора, 1,33 GHz (2 ядра), со-процессор RegulBus, 2 Gb RAM, 1x32 Gb SSD, RS-232, RS-485, 4 x Ethernet RJ45, 2 х USB, DVI, поддержка WEB-визуализации ","R500 CU 00 181(W)-002-AAA",null,null,null,null,null,null,null,null,null,0,0]
["Модуль центрального процессора, 1,33 GHz (2 ядра), со-процессор RegulBus, 2 Gb RAM, 1x64 Gb SSD, RS-232, RS-485, 4 x Ethernet RJ45, 2 х USB, DVI, поддержка WEB-визуализации ","R500 CU 00 181(W)-003-AAA",null,null,null,null,null,null,null,null,null,0,0]
["Модуль центрального процессора, 1,93 GHz (4 ядра), со-процессор RegulBus, 2 Gb RAM, 1x8 Gb SSD, RS-232, RS-485, 4 x Ethernet RJ45, 2 х USB, DVI, поддержка WEB-визуализации","R500 CU 00 181(W)-004-AAA",null,null,null,null,null,null,null,null,null,0,0]
["Модуль центрального процессора, 1,93 GHz (4 ядра), со-процессор RegulBus, 2 Gb RAM, 1x16 Gb SSD, RS-232, RS-485, 4 x Ethernet RJ45, 2 х USB, DVI, поддержка WEB-визуализации ","R500 CU 00 181(W)-005-AAA",null,null,null,null,null,null,null,null,null,0,0]
["Модуль центрального процессора, 1,93 GHz (4 ядра), со-процессор RegulBus, 2 Gb RAM, 1x32 Gb SSD, RS-232, RS-485, 2 x Ethernet RJ45, 4 x Ethernet RJ45, 2 х USB, DVI, поддержка WEB-визуализации ","R500 CU 00 181(W)-006-AAA",null,null,null,null,null,null,null,null,null,0,0]
["Модуль центрального процессора, 1,93 GHz (4 ядра), со-процессор RegulBus, 2 Gb RAM, 1x64 Gb SSD, RS-232, RS-485, 4 x Ethernet RJ45, 2 х USB, DVI, поддержка WEB-визуализации ","R500 CU 00 181(W)-007-AAA",null,null,null,null,null,null,null,null,null,0,0]
["Модуль центрального процессора, 1,33 GHz (2 ядра), со-процессор RegulBus, 2 Gb RAM, 1x8 Gb SSD, RS-232, RS-485, 4 x Ethernet RJ45, 2 х USB, DVI, GPS/GLONASS, поддержка WEB-визуализации","R500 CU 00 181(W)-008-AAA",null,null,null,null,null,null,null,null,null,0,0]
["Модуль центрального процессора, 1,93 GHz (4 ядра), со-процессор RegulBus, 2 Gb RAM, 1x8 Gb SSD, RS-232, RS-485, 4 x Ethernet RJ45, 2 х USB, DVI, GPS/GLONASS, поддержка WEB-визуализации","R500 CU 00 181(W)-012-AAA",null,null,null,null,null,null,null,null,null,0,0]
["Модуль аналогового ввода, 0/4…20 мА, 16 каналов, общая гальваническая изоляция, погрешность 0,1%","R500 AI 16 011-000-AAA",null,null,null,null,null,null,null,null,null,0,0]
["Модуль аналогового ввода, ТПС/ТЭП, 8 каналов, общая гальваническая изоляция, погрешность 0,1%","R500 AI 08 031-000-AAA",null,null,null,null,null,null,null,null,null,0,0]
["Модуль аналогового ввода, ТПС/ТЭП, 8 каналов, поканальная гальваническая изоляция, погрешность 0,1%","R500 AI 08 131-000-AAA",null,null,null,null,null,null,null,null,null,0,0]
["Модуль аналогового ввода, 0/4...20 мА + HART, 8 каналов, поканальная гальваническая изоляция, индивидуальные АЦП и HART-модем на каждый канал, погрешность 0,1%","R500 AI 08 022-000-AAA",null,null,null,null,null,null,null,null,null,0,0]
["Модуль аналогового ввода, 0/4…20 мА, -10/0…+10 В, 8 каналов, поканальная гальваническая изоляция, погрешность 0,025%, поддержка 2-х шин питания","R500 AI 08 042-000-AAA",null,null,null,null,null,null,null,null,null,0,0]
["Модуль аналогового ввода, 0/4…20 мА, -10/0…+10 В, 8 каналов, поканальная гальваническая изоляция, погрешность 0,1%","R500 AI 08 052-000-AAA",null,null,null,null,null,null,null,null,null,0,0]
["Модуль аналогового ввода, 4…20 мА + HART, 16 каналов (2 группы по 8 каналов), групповая гальваническая изоляция, погрешность 0,1%","R500 AI 16 081-000-AAA",null,null,null,null,null,null,null,null,null,0,0]
["Модуль аналогового ввода, 0/4…20 мА, -10/0…+10 В, 8 каналов, поканальная гальваническая изоляция, функция питания датчика, погрешность 0,025%, поддержка 2-х шин питания","R500 AI 08 142-000-AAA",null,null,null,null,null,null,null,null,null,{"$f":"ROUNDUP(SUM(C192:K192)*$P$2,0)","v":0},{"$f":"SUM(C192:L192)","v":0}]
["Модуль аналогового ввода, 0/4…20 мА, -10/-5/0…+5/10 В, 8 каналов, частота дискретизации сигнала 100 мкс, поканальная гальваническая изоляция, погрешность 0,025%","R500 AI 08 242-000-AAA",null,null,null,null,null,null,null,null,null,0,0]
["Модуль аналогового ввода, 0/4…20 мА, -10/-5/0…+5/10 В, 8 каналов, частота дискретизации сигнала 100 мкс, поканальная гальваническая изоляци, функция питания датчика, погрешность 0,025%, поддержка 2-х шин питания","R500 AI 08 342-000-AAA",null,null,null,null,null,null,null,null,null,0,0]
["Модуль дискретного ввода, 24 VDC, 32 канала (4 группы по 8 каналов, общий \"минус\" или \"плюс\"), групповая гальваническая изоляция","R500 DI 32 012-000-AAA",null,null,null,null,null,null,null,null,null,0,0]
["Модуль дискретного ввода, 220 VAC/VDC, 16 каналов, поканальная гальваническая изоляция","R500 DI 16 021-000-AAA",null,null,null,null,null,null,null,null,null,0,0]
["Модуль дискретного ввода, NAMUR, 16 каналов , групповая гальваническая изоляция","R500 DI 16 032-000-AAA",null,null,null,null,null,null,null,null,null,0,0]
["Модуль счета импульсов / измерения частоты, 3 канала 1 Гц...500 кГц, 6 каналов DI 24 VDC,  6 каналов DO 24 VDC, 0,5 А","R500 DA 03 011-000-AAA",null,null,null,null,null,null,null,null,null,0,0]
["Модуль счета импульсов / измерения частоты, 3 канала 1 Гц...500 кГц, 1 канал генератора импульсов 1 Гц…10 кГц, 6 каналов DI 24 VDC,  6 каналов DO 24 VDC, 0,5 A, возможность автономной работы в режиме электронного автомата безопасности","R500 DA 03 021-000-AAA",null,null,null,null,null,null,null,null,null,0,0]
["Модуль аналогового вывода, 0/4…20 мА, 8 каналов, поканальная гальваническая изоляция, погрешность 0,1%","R500 AO 08 011-000-AAA",null,null,null,null,null,null,null,null,null,0,0]
["Модуль аналогового вывода, 0/4…20 мА + HART, 8 каналов, поканальная гальваническая изоляция, погрешность 0,1%","R500 AO 08 021-000-AAA",null,null,null,null,null,null,null,null,null,0,0]
["Модуль аналогового вывода, 0/4…20 мА, -10/0…+10 В, 8 каналов, поканальная гальваническая изоляция, погрешность 0,1%","R500 AO 08 031-000-AAA",null,null,null,null,null,null,null,null,null,0,0]
["Модуль аналоговый комбинированный, 6 AI 0/4…20 мА, -10/0…+10 В, 2 AO 0/4…20 мА, -10/0…+10 В, поканальная гальваническая изоляция, погрешность 0,1%","R500 AS 08 011-000-AAA",null,null,null,null,null,null,null,null,null,0,0]
["Модуль дискретного вывода, твердотельные реле, 24 V AC/DC, 0,5 А, 32 канала (4 группы по 8 каналов), групповая гальваническая изоляция","R500 DO 32 012-000-AAA",null,null,null,null,null,null,null,null,null,0,0]
["Модуль дискретного вывода, твердотельные реле, 24 VDC, 0,5 А, 32 канала (2 группы по 16 каналов), групповая гальваническая изоляция, контроль обрыва внешних цепей, работа до 4-х каналов в режиме ШИМ (до 30 кГц)","R500 DO 32 041-000-AAA",null,null,null,null,null,null,null,null,null,0,0]
["Модуль DO, 220 VAC, 2 А / 220 VDC, 0,27 А, 16 каналов, поканальная гальваническая изоляция","R500 DO 16 021-000-AAA",null,null,null,null,null,null,null,null,null,0,0]
["Модуль дискретный комбинированный, 24 DI (3 группы по 8 каналов) 24 VDC, 8 DO, твердотельные реле, (1 группа), 24 VDC, 0,5 А, групповая гальваническая изоляция","R500 DS 32 012-000-AAA",null,null,null,null,null,null,null,null,null,0,0]
["Модуль коммуникационного процессора RS-485 (Modbus RTU, IEC 60870-5-101), 4 порта","R500 CP 04 011-000-AAA",null,null,null,null,null,null,null,null,null,0,0]
["Модуль коммуникационного процессора Ethernet 100BASE-T (Modbus TCP, IEC 60870-5-104), 2 порта","R500 CP 02 021-000-AAA",null,null,null,null,null,null,null,null,null,0,0]
["Модуль коммуникационного процессора RegulBus (модуль расширения шины), 6 портов RJ45","R500 CP 06 111-000-AAA",null,null,null,null,null,null,null,null,null,0,0]
["Модуль коммуникационного процессора PROFIBUS DP-V0 Master, 1 канал ","R500 CP 01 031-000-AAA",null,null,null,null,null,null,null,null,null,0,0]
["Модуль расширения сетевых портов ЦПУ,  4 x Ethernet RJ45"," R500 EU 04 021-000-AAA",null,null,null,null,null,null,null,null,null,0,0]
["Модуль расширения сетевых портов ЦПУ, 4 x Ethernet SFP","R500 EU 04 031-000-AAA",null,null,null,null,null,null,null,null,null,0,0]
["Модуль источника внешнего питания, 24 VDC, 70 mA (на канал), 8 каналов, поканальная гальваническая изоляция","R500 PO 08 041-000-AAA",null,null,null,null,null,null,null,null,null,0,0]
["Модуль источника питания 24 VDC, 75 Вт","R500 PP 00 011-000-AAA",null,null,null,null,null,null,null,null,null,0,0]
["Модуль источника питания 24 VDC, 75 Вт, с гальваноизоляцией внутренней сети питания от внешней","R500 PP 00 021-000-AAA",null,null,null,null,null,null,null,null,null,0,0]
["Модуль источника питания 220 VAC/VDC, 75 Вт, с гальваноизоляцией внутренней сети питания от внешней","R500 PP 00 031-000-AAA",null,null,null,null,null,null,null,null,null,0,0]
["Модуль источника питания 24 VDC, 75 Вт, интеллектуальный, поддержка выбора шины питания","R500 PP 00 051-000-AAA",null,null,null,null,null,null,null,null,null,0,0]
["Шасси для модулей ввода/вывода и источников питания (одна шина данных, одна шина питания)","R500 CH 01 011-000-AAA",{"$f":"SUM(C185:C209,C211,C214:C218)*$N$219","v":0},{"$f":"SUM(D185:D209,D211,D214:D218)*$N$219","v":0},0,0,0,0,0,0,0,0,0,0]
["Шасси с поддержкой резервирования для модулей ввода/вывода и источников питания (две шины данных, две шины питания)","R500 CH 02 012-000-AAA",{"$f":"SUM(C185:C209,C211,C214:C218)*$N$220","v":0},{"$f":"SUM(D185:D211,D214:D218)*$N$220","v":0},0,0,0,0,0,0,0,0,0,1]
["Шасси с поддержкой резервирования для модулей ввода/вывода и источников питания (две шины данных, две шины питания, доп. внутр. самодиагностика)","R500 CH 02 811-000-AAA",{"$f":"C210","v":0},{"$f":"D210","v":0},0,0,0,0,0,0,0,0,0]
["Шасси с поддержкой резервирования для модулей EU (две шины данных, две шины питания)","R500 CH 02 041-000-AAA",{"$f":"SUM(C212:C213)","v":0},{"$f":"SUM(D212:D213)","v":0},0,0,0,0,0,0,0,{"$f":"ROUNDUP(SUM(C222:K222)*$P$2,0)","v":0},0]
["Шасси с поддержкой резервирования для модулей однослотового центрального процессора II типа (две шины данных, две шины питания)","R500 CH 02 032-000-AAA",{"$f":"SUM(C4:C5,C95:C96)","v":0},0,0,0,0,0,0,0,0,{"$f":"ROUNDUP(SUM(C223:K223)*$P$2,0)","v":0},0]
["Шасси с поддержкой резервирования для модулей двухслотового центрального процессора I или III типа (две шины данных, две шины питания)","R500 CH 02 023-000-AAA",{"$f":"SUM(C6:C94,C97:C184)","v":0},0,0,0,0,0,0,0,0,{"$f":"ROUNDUP(SUM(C224:K224)*$P$2,0)","v":0},0]
["Клеммная колодка для модулей ввода/вывода R500, 36 контактов (черн.)","R500 CL 36 001",{"$f":"SUM(C202:C207,C185:C199,C214)*$N$225","v":0},{"$f":"SUM(D202:D207,D185:D199,D214)*$N$225","v":0},0,0,0,0,0,0,0,0,0,1]
["Клеммная колодка для модулей ввода/вывода R500, 20 контактов (черн.)","R500 CL 20 001",{"$f":"SUM(C200:C201,C208)*$N$226","v":0},{"$f":"SUM(D200:D201,D208)*$N$226","v":0},0,0,0,0,0,0,0,0,0,1]
["Оконечный модуль без поддержки функции расширения шины","R500 ST 00 001",null,null,null,null,null,null,null,null,null,0,0]
["Оконечный модуль с поддержкой функции расширения шины (IN), две шины питания, разъем RJ45","R500 ST 01 013-000-AAA",null,null,null,null,null,null,null,null,null,0,0]
["Оконечный модуль с поддержкой функции расширения шины (OUT), две шины питания, разъем RJ45","R500 ST 01 023-000-AAA",null,null,null,null,null,null,null,null,null,0,0]
["Оконечный модуль с поддержкой функции расширения шины и резервирования (IN), две шины питания, разъем RJ45","R500 ST 02 013-000-AAA",null,null,null,null,null,null,null,null,null,0,0]
["Оконечный модуль с поддержкой функции расширения шины и резервирования (OUT), две шины питания, разъем RJ45","R500 ST 02 023-000-AAA",null,null,null,null,null,null,null,null,null,0,0]
["Оконечный модуль с поддержкой функции расширения шины и резервирования (IN), две шины питания, разъем SFP","R500 ST 02 113-000-AAA",null,null,null,null,null,null,null,null,null,0,0]
["Оконечный модуль с поддержкой функции расширения шины и резервирования (OUT), две шины питания, разъем SFP","R500 ST 02 123-000-AAA",null,null,null,null,null,null,null,null,null,0,0]
["DIN-рейка L=600мм","R500 DN 060",null,null,null,null,null,null,null,null,null,null,0]
["DIN-рейка L=800мм","R500 DN 080",null,null,null,null,null,null,null,null,null,null,0]
["DIN-рейка L=1000мм","R500 DN 100",null,null,null,null,null,null,null,null,null,null,0]
[null,"Общая ширина модулей, мм:",{"$f":"SUM(C4:C5,C95:C96,C185:C218,C227)*40+SUM(C6:C94,C97:C184)*80+SUM(C228:C233)*25","v":0},{"$f":"SUM(D4:D5,D95:D96,D185:D218,D227)*40+SUM(D6:D94,D97:D184)*80+SUM(D228:D233)*25","v":0},0,0,0,0,0,0,0,null,1]
[null,"ВхГ модулей ПЛК: 180х155 мм",null,null,null,null,null,null,null,null,null,null,0]
[null,null,null,null,null,null,null,null,null,null,null,null,1]
["Управляемые коммутаторы шины RegulBus",null,null,null,null,null,null,null,null,null,null,null,0]
["Управляемый коммутатор шины RegulBus, 2 входных порта RJ45, 6 выходных портов RJ45, два ввода питания 24 VDC","R000 CP 06 111-000-AAA",null,null,null,null,null,null,null,null,null,{"$f":"ROUNDUP(SUM(C241:K241)*$P$2,0)","v":0},{"$f":"SUM(C241:L241)","v":0}]
["Управляемый коммутатор шины RegulBus, 2 входных порта SFP, 6 выходных портов RJ45, два ввода питания 24 VDC","R000 CP 06 121-000-AAA",null,null,null,null,null,null,null,null,null,{"$f":"ROUNDUP(SUM(C242:K242)*$P$2,0)","v":0},{"$f":"SUM(C242:L242)","v":0}]
[null,null,null,null,null,null,null,null,null,null,null,null,1]
["Шлюз-конвертор протоколов передачи данных Regul",null,null,null,null,null,null,null,null,null,null,null,0]
["Шлюз-конвертор, RS-232, RS-485, 2 x Ethernet RJ45","R500G CU 00 021-000-AAA",null,null,null,null,null,null,null,null,null,{"$f":"ROUNDUP(SUM(C245:K245)*$P$2,0)","v":0},{"$f":"SUM(C245:L245)","v":0}]
["Шлюз-конвертор, RS-232, RS-485, 2 x Ethernet SFP","R500G CU 00 031-000-AAA",null,null,null,null,null,null,null,null,null,{"$f":"ROUNDUP(SUM(C246:K246)*$P$2,0)","v":0},{"$f":"SUM(C246:L246)","v":0}]
[null,null,null,null,null,null,null,null,null,null,null,null,1]
["Regul R400",null,null,null,null,null,null,null,null,null,null,null,0]
["Операторская панель 7”, емкостной touch-screen, разрешение 800х480, со встроенным ЦПУ, 1,46 GHz, 2 Gb RAM, 4Gb SSD, 2 x USB host 2.0, RS-485, 2 x Ethernet RJ45, 2 x RegulBus","R400 CU 00 071-000-AAA",null,null,null,null,null,null,null,null,null,{"$f":"ROUNDUP(SUM(C249:K249)*$P$2,0)","v":0},{"$f":"SUM(C249:L249)","v":0}]
["Операторская панель 7”, емкостной touch-screen, разрешение 800х480, со встроенным ЦПУ, 1,46 GHz, 2 Gb RAM, 4Gb SSD, 2 x USB host 2.0, RS-485, 2 x Ethernet RJ45, 2 x RegulBus, поддержка WEB-визуализации","R400 CU 00 071(W)-000-AAA",null,null,null,null,null,null,null,null,null,{"$f":"ROUNDUP(SUM(C250:K250)*$P$2,0)","v":0},{"$f":"SUM(C250:L250)","v":0}]
[null,null,null,null,null,null,null,null,null,null,null,null,1]
[null,"Общее потребление модулей, Вт:",{"$f":"(C4+C95)*5+(C5+C96)*6.2+SUM(C6:C22,C97:C112)*15.6+SUM(C23:C38,C113:C128)*15.9+SUM(C39:C54,C129:C144)*18.3+SUM(C55:C74,C145:C164)*16+SUM(C75:C94,C165:C184)*19+C185*2.5+C186*3+C187*3+C188*4.967+(C189+C192)*4.5+C190*2+C191*2.4+C193*5+C194*12+(C195+C196)*3.2+C197*5.5+C198*4.4+C199*4+C200*2.3+C201*4+C202*2.3+C203*2.8+C204*2.5+C205*1+C206*7+C207*3+C208*3.3+C209*3.17+C210*6.4+C211*5+(C212+C213)*6+C214*1+C215*0.29+C216*2+C217*1+C218*0.5+C219*0.3+(C220+C221)*1+(C222+C223)*2.5+C224*2+(C228+C229)*1.5+(C230+C231+C232+C233)*2.5","v":0},{"$f":"(D4+D95)*5+(D5+D96)*6.2+SUM(D6:D22,D97:D112)*15.6+SUM(D23:D38,D113:D128)*15.9+SUM(D39:D54,D129:D144)*18.3+SUM(D55:D74,D145:D164)*16+SUM(D75:D94,D165:D184)*19+D185*2.5+D186*3+D187*3+D188*4.967+(D189+D192)*4.5+D190*2+D191*2.4+D193*5+D194*12+(D195+D196)*3.2+D197*5.5+D198*4.4+D199*4+D200*2.3+D201*4+D202*2.3+D203*2.8+D204*2.5+D205*1+D206*7+D207*3+D208*3.3+D209*3.17+D210*6.4+D211*5+(D212+D213)*6+D214*1+D215*0.29+D216*2+D217*1+D218*0.5+D219*0.3+(D220+D221)*1+(D222+D223)*2.5+D224*2+(D228+D229)*1.5+(D230+D231+D232+D233)*2.5","v":0},0,0,0,0,0,0,0,null,1]
[]
[null,"Аналоговых сигналов:",{"$f":"SUM(C185,C191)*16+SUM(C186:C190,C192:C194,C200:C203)*8","v":0},0,0,0,0,0,0,0,0]
[null,"Дискретных сигналов:",{"$f":"SUM(C195:C195,C204:C205,C207)*32+SUM(C196:C197,C206)*16","v":0},0,0,0,0,0,0,0,0]
[null,"Импульсных сигналов:",{"$f":"SUM(C198:C199)*3","v":0},0,0,0,0,0,0,0,0]
[null,"Всего сигналов:",{"$f":"SUM(C254:C256)","v":0},{"$f":"SUM(D254:D256)","v":0},0,0,0,0,0,0,0]
[null,"Портов",{"$f":"SUM(C208,C212:C213)*4+C209*2+C211","v":0},{"$f":"SUM(D208,D212:D213)*4+D209*2+D211","v":0},0,0,0,0,0,0,0]
[]
[null,"Сигналов DA:",{"$f":"C254*35+(C255+C256)*10+250","v":250},{"$f":"D254*35+(D255+D256)*10+250","v":250},250,250,250,250,250,250,250]
[null,"Сигналов HDA:",{"$f":"ROUNDUP(C260*50%,0)","v":125},{"$f":"ROUNDUP(D260*50%,0)","v":125},125,125,125,125,125,125,125]

{"sheet":"R500S","index":1,"n_rows":39,"n_cols":16,"rows_kept":39,"cut":false,"hidden":false,"merged":[]}
[]
["Наименование","Каталожный номер","Крейт 1","Крейт 2","Крейт 3","Крейт 4","Крейт 5","Крейт 6","Крейт 7","Крейт 8","Крейт 9","ЗИП","Всего количество","Use ?","ЗИП",0]
["Regul R500S",null,null,null,null,null,null,null,null,null,null,null,0]
["Модуль центрального процессора RS-232, RS-485, 2 x Ethernet RJ45","R500S CU 00 821-000-AAA",null,null,null,null,null,null,null,null,null,{"$f":"ROUNDUP(SUM(C4:K4)*$P$2,0)","v":0},{"$f":"SUM(C4:L4)","v":0}]
["Модуль центрального процессора RS-232, RS-485, 2 x SFP","R500S CU 00 831-000-AAA",null,null,null,null,null,null,null,null,null,{"$f":"ROUNDUP(SUM(C5:K5)*$P$2,0)","v":0},{"$f":"SUM(C5:L5)","v":0}]
["Модуль центрального процессора RS-232, RS-485, 4 x Ethernet RJ45,  2 х USB","R500S CU 00 851-000-AAA",null,null,null,null,null,null,null,null,null,{"$f":"ROUNDUP(SUM(C6:K6)*$P$2,0)","v":0},{"$f":"SUM(C6:L6)","v":0}]
["Модуль аналогового ввода, ток 0/4...20 мА, 4 канала, поканальная гальваническая изоляция, два АЦП на каждый канал (работают в паре), функция питания датчиков от модуля","\tR500S AI 04 841-000-AAA",null,null,null,null,null,null,null,null,null,{"$f":"ROUNDUP(SUM(C7:K7)*$P$2,0)","v":0},{"$f":"SUM(C7:L7)","v":0}]
["Модуль аналогового ввода, напряжение -5/0…+5В, -10/0…+10 В, 8 каналов, поканальная гальваническая изоляция, два ввода питания для датчиков, общее питание датчиков","R500S AI 08 851-000-AAA",null,null,null,null,null,null,null,null,null,{"$f":"ROUNDUP(SUM(C8:K8)*$P$2,0)","v":0},{"$f":"SUM(C8:L8)","v":0}]
["Модуль аналогового ввода,напряжение -5/0…+5В, -10/0…+10 В, 4 канала, поканальная гальваническая изоляция, два АЦП на каждый канал (работают в паре), функция питания датчиков от модуля","R500S AI 04 861-000-AAA",null,null,null,null,null,null,null,null,null,{"$f":"ROUNDUP(SUM(C9:K9)*$P$2,0)","v":0},{"$f":"SUM(C9:L9)","v":0}]
["Модуль аналогового ввода 0/4...20 мА + HART, 8 каналов, поканальная гальваническая изоляция, два ввода питания для датчиков, общее питание датчиков","R500S AI 08 881-000-AAA",null,null,null,null,null,null,null,null,null,0,0]
["Модуль дискретного ввода, 24 VDC, 28 каналов (4 группы по 7 каналов), групповая гальваническая изоляция","R500S DI 28 811-000-AAA",null,null,null,null,null,null,null,null,null,0,0]
["Модуль дискретного ввода, NAMUR, внешнее питание 24 VDC, 16 каналов, общая гальваническая изоляции","R500S DI 16 831-000-AAA",null,null,null,null,null,null,null,null,null,0,0]
["Модуль дискретного вывода, 24 VDC, 0,6 А, 16 каналов, общая гальваническая изоляция","R500S DO 16 811-000-AAA",null,null,null,null,null,null,null,null,null,0,0]
["Модуль аналогового вывода, 4...20 мА, -10/0...+10 В, 4 канала, поканальная гальваническая изоляция","\tR500S AO 04 831-000-AAA",null,null,null,null,null,null,null,null,null,0,0]
["Клеммная колодка для модулей ввода/вывода R500S, 36 контактов (желт.)","R500S CL 36 001",{"$f":"SUM(C8,C10:C13)*$N$15","v":0},{"$f":"SUM(D8,D10:D13)*$N$15","v":0},0,0,0,0,0,0,0,{"$f":"ROUNDUP(SUM(C15:K15)*$P$2,0)","v":0},{"$f":"SUM(C15:L15)","v":0},1]
["Клеммная колодка для модулей ввода/вывода, 20 контактов (желт.)","R500S CL 20 001",{"$f":"SUM(C7,C9,C14)*$N$16","v":0},{"$f":"SUM(D7,D9,D14)*$N$16","v":0},0,0,0,0,0,0,0,{"$f":"ROUNDUP(SUM(C16:K16)*$P$2,0)","v":0},0,1]
["Regul R500",null,null,null,null,null,null,null,null,null,null,null,0]
["Модуль источника питания 24 VDC, 75 Вт, интеллектуальный, поддержка выбора шины питания","R500 PP 00 051-000-AAA",null,null,null,null,null,null,null,null,null,{"$f":"ROUNDUP(SUM(C18:K18)*$P$2,0)","v":0},{"$f":"SUM(C18:L18)","v":0}]
["Шасси с поддержкой резервирования для модулей ввода/вывода и источников питания (две шины данных, две шины питания, доп. внутр. самодиагностика)","R500 CH 02 811-000-AAA",{"$f":"SUM(C7:C14,C18)","v":0},{"$f":"SUM(D7:D14,D18)","v":0},0,0,0,0,0,0,0,{"$f":"ROUNDUP(SUM(C19:K19)*$P$2,0)","v":0},{"$f":"SUM(C19:L19)","v":0}]
["Шасси с поддержкой резервирования для модулей однослотового центрального процессора (две шины данных, две шины питания)","R500 CH 02 032-000-AAA",{"$f":"SUM(C4:C5)","v":0},0,0,0,0,0,0,0,0,{"$f":"ROUNDUP(SUM(C20:K20)*$P$2,0)","v":0},{"$f":"SUM(C20:L20)","v":0}]
["Шасси с поддержкой резервирования для модулей двухслотового центрального процессора I и III типа (две шины данных, две шины питания)","R500 CH 02 023-000-AAA",{"$f":"SUM(C6:C6)","v":0},0,0,0,0,0,0,0,0,{"$f":"ROUNDUP(SUM(C21:K21)*$P$2,0)","v":0},{"$f":"SUM(C21:L21)","v":0}]
["Оконечный модуль с поддержкой функции расширения шины и резервирования (IN), разъем RJ45","R500 ST 02 012-000-AAA",null,null,null,null,null,null,null,null,null,{"$f":"ROUNDUP(SUM(C22:K22)*$P$2,0)","v":0},{"$f":"SUM(C22:L22)","v":0}]
["Оконечный модуль с поддержкой функции расширения шины и резервирования (OUT), разъем RJ45","R500 ST 02 022-000-AAA",null,null,null,null,null,null,null,null,null,0,0]
["Оконечный модуль с поддержкой функции расширения шины и резервирования (IN), разъем SFP","R500 ST 02 113-000-AAA",null,null,null,null,null,null,null,null,null,0,0]
["Оконечный модуль с поддержкой функции расширения шины и резервирования (OUT), разъем SFP","R500 ST 02 123-000-AAA",null,null,null,null,null,null,null,null,null,0,0]
["DIN-рейка L=600мм","R500 DN 060",null,null,null,null,null,null,null,null,null,null,0]
["DIN-рейка L=800мм","R500 DN 080",null,null,null,null,null,null,null,null,null,null,0]
["DIN-рейка L=1000мм","R500 DN 100",null,null,null,null,null,null,null,null,null,null,0]
[null,"Общая ширина модулей, мм:",{"$f":"SUM(C4:C5,C7:C14,C18,C22:C23)*40+SUM(C6:C6)*80+SUM(C24:C25)*25","v":0},0,0,0,0,0,0,0,0,null,1]
[null,"ВхГ модулей ПЛК: 180х155 мм",null,null,null,null,null,null,null,null,null,null,0]
[null,"Потребление модулей от внутр. шины, А:",{"$f":"C7*0.209+C8*0.375+C9*0.225+C10*0.313+C11*0.209+C12*0.171+C13*0.234+C14*0.25+(C4+C5)*0.42+C20*0.004+C19*0.025+(C22+C23)*0.081+(C24+C25)*0.096+C21*0.075+(C6)*1.042","v":0},{"$f":"D7*0.209+D8*0.375+D9*0.225+D10*0.313+D11*0.209+D12*0.171+D13*0.234+D14*0.25+(D4+D5)*0.42+D20*0.004+D19*0.025+(D22+D23)*0.081+(D24+D25)*0.096+D21*0.075+(D6)*1.042","v":0},0,0,0,0,0,0,0,null,0]
[null,"Общее потребление модулей, Вт:",{"$f":"ROUNDUP(C31*24,2)","v":0},{"$f":"ROUNDUP(D31*24,2)","v":0},0,0,0,0,0,0,0,null,1]
[]
[null,"Аналоговых сигналов:",{"$f":"SUM(C8,C10)*8+SUM(C7,C9,C14)*4","v":0},0,0,0,0,0,0,0,0]
[null,"Дискретных сигналов:",{"$f":"C11*28+SUM(C12:C13)*16","v":0},{"$f":"D11*28+SUM(D12:D13)*16","v":0},0,0,0,0,0,0,0]
[null,"Всего сигналов:",{"$f":"SUM(C34:C35)","v":0},{"$f":"SUM(D34:D35)","v":0},0,0,0,0,0,0,0]
[]
[null,"Сигналов DA:",{"$f":"C34*35+C35*10","v":0},{"$f":"D34*35+D35*10","v":0},0,0,0,0,0,0,0]
[null,"Сигналов HDA:",{"$f":"ROUNDUP(C38*50%,0)","v":0},{"$f":"ROUNDUP(D38*50%,0)","v":0},0,0,0,0,0,0,0]

{"sheet":"ПО Astra","index":2,"n_rows":174,"n_cols":9,"rows_kept":174,"cut":false,"hidden":false,"merged":[]}
[]
["Наименование","Каталожный номер","Сервер\n(основной)","Сервер\n(резервный)","АРМ оператора (основной)","АРМ оператора (резервный)","АРМ\nинженера АСУ","АРМ\nинженера КИП","Всего количество"]
["AstraRegul",null,null,null,null,null,null,null,0]
["Пакет Local\nОдноранговая сетевая система с обменом оперативными данными между узлами",null,null,null,null,null,null,null,0]
["Лицензия Astra.Local, 150 тегов","LCL-N150",null,null,null,null,null,null,{"$f":"SUM(C5:H5)","v":0}]
["Лицензия Astra.Local, 300 тегов","LCL-N300",null,null,null,null,null,null,0]
["Лицензия Astra.Local, 500 тегов","LCL-N500",null,null,null,null,null,null,0]
["Лицензия Astra.Local, 1k тегов","LCL-N1k",null,null,null,null,null,null,0]
["Лицензия Astra.Local, 1k5 тегов","LCL-N1k5",null,null,null,null,null,null,0]
["Лицензия Astra.Local, 3k тегов","LCL-N3k",null,null,null,null,null,null,0]
["Лицензия Astra.Local, 5k тегов","LCL-N5k",null,null,null,null,null,null,0]
["Лицензия Astra.Local, 15k тегов","LCL-N15k",null,null,null,null,null,null,0]
["Лицензия Astra.Local, 50k тегов","LCL-N50k",null,null,null,null,null,null,0]
["Astra.Local. Расширение со 150 до 300 тегов","LCL-N-UP300",null,null,null,null,null,null,0]
["Astra.Local. Расширение с 300 до 500 тегов","LCL-N-UP500",null,null,null,null,null,null,0]
["Astra.Local. Расширение с 500 до 1k тегов","LCL-N-UP1k",null,null,null,null,null,null,0]
["Astra.Local. Расширение с 1k до 1k5 тегов","LCL-N-UP1k5",null,null,null,null,null,null,0]
["Astra.Local. Расширение с 1k5 до 3k тегов","LCL-N-UP3k",null,null,null,null,null,null,0]
["Astra.Local. Расширение с 3k до 5k тегов","LCL-N-UP5k",null,null,null,null,null,null,0]
["Astra.Local. Расширение c 5k до 15k тегов","LCL-N-UP15k",null,null,null,null,null,null,0]
["Astra.Local. Расширение  c 15k до 50k тегов","LCL-N-UP50k",null,null,null,null,null,null,0]
["Upgrade Astra.Local, 500 тегов до Plant.Server 500 тегов и 1 Client Full","LCL-N-Plant-500",null,null,null,null,null,null,0]
["Upgrade Astra.Local, 1k тегов до Plant.Server 1k тегов и 1 Client Full","LCL-N-Plant-1k",null,null,null,null,null,null,0]
["Upgrade Astra.Local, 1k5 тегов до Plant.Server 1k5 тегов и 1 Client Full","LCL-N-Plant-1k5",null,null,null,null,null,null,0]
["Upgrade Astra.Local, 3k тегов до Plant.Server 3k тегов и 1 Client Full","LCL-N-Plant-3k",null,null,null,null,null,null,0]
["Upgrade Astra.Local, 5k тегов до Plant.Server 5k тегов и 1 Client Full","LCL-N-Plant-5k",null,null,null,null,null,null,0]
["Upgrade Astra.Local, 15k тегов до Plant.Server 15k тегов и 1 Client Full","LCL-N-Plant-15k",null,null,null,null,null,null,0]
["Upgrade Astra.Local, 50k тегов до Plant.Server 50k тегов и 1 Client Full","LCL-N-Plant-50k",null,null,null,null,null,null,0]
["Пакет Plant\nКлиент-сервер (максимум 2 сервера на систему, одна резервная пара)",null,null,null,null,null,null,null,0]
["Plant.Server, 500 тегов","PLN-SRV500",null,null,null,null,null,null,0]
["Plant.Server, 1k тегов","PLN-SRV1k",null,null,null,null,null,null,0]
["Plant.Server, 1k5 тегов","PLN-SRV1k5",null,null,null,null,null,null,{"$f":"SUM(C32:H32)","v":0}]
["Plant.Server, 3k тегов","PLN-SRV3k",null,null,null,null,null,null,0]
["Plant.Server, 5k тегов","PLN-SRV5k",null,null,null,null,null,null,0]
["Plant.Server, 15k тегов","PLN-SRV15k",null,null,null,null,null,null,0]
["Plant.Server, 50k тегов","PLN-SRV50k",null,null,null,null,null,null,0]
["Plant.Server, 100k тегов","PLN-SRV100k",null,null,null,null,null,null,0]
["Plant.Server, 150k тегов","PLN-SRV150k",null,null,null,null,null,null,0]
["Plant.Server. Расширение с 500 до 1k тегов","PLN-SRV-UP1k",null,null,null,null,null,null,0]
["Plant.Server. Расширение с 1k до 1k5 тегов","PLN-SRV-UP1k5",null,null,null,null,null,null,0]
["Plant.Server. Расширение с 1k5 до 3k тегов","PLN-SRV-UP3k",null,null,null,null,null,null,0]
["Plant.Server. Расширение с 3k до 5k тегов","PLN-SRV-UP5k",null,null,null,null,null,null,0]
["Plant.Server. Расширение с 5k до 15k тегов","PLN-SRV-UP15k",null,null,null,null,null,null,0]
["Plant.Server. Расширение с 15k до 50k тегов","PLN-SRV-UP50k",null,null,null,null,null,null,0]
["Plant.Server. Расширение с 50k до 100k тегов","PLN-SRV-UP100k",null,null,null,null,null,null,0]
["Plant.Server. Расширение с 100k до 150k тегов","PLN-SRV-UP150k",null,null,null,null,null,null,0]
["Plant/Enterprise.Client Full","A-CL-F",null,null,null,null,null,null,0]
["Plant/Enterprise.Client. До 10 клиентов без управления","A-CL-RO10",null,null,null,null,null,null,{"$f":"SUM(C48:H48)","v":0}]
["Plant/Enterprise.Client. До 25 клиентов без управления","A-CL-RO25",null,null,null,null,null,null,0]
["Plant/Enterprise.Client. До 50 клиентов без управления","A-CL-RO50",null,null,null,null,null,null,0]
["Plant/Enterprise.Client. До 100 клиентов без управления","A-CL-RO100",null,null,null,null,null,null,0]
["Plant/Enterprise.Client. Увеличение клиентов без управления с 10 до 25","A-CL-ROUP25",null,null,null,null,null,null,0]
["Plant/Enterprise.Client. Увеличение клиентов без управления с 25 до 50","A-CL-ROUP50",null,null,null,null,null,null,0]
["Plant/Enterprise.Client. Увеличение клиентов без управления с 50 до 100","A-CL-ROUP100",null,null,null,null,null,null,0]
["Пакет Enterprise\nРаспределенная диспетчерская система",null,null,null,null,null,null,null,0]
["Лицензия дополнительного сервера в/в на одном ПК для Enterprise","EP-IOSRV",null,null,null,null,null,null,{"$f":"SUM(C56:H56)","v":0}]
["Astra.Enterprise. 1k5 тегов, до 2 x I/O SRV, 1 Client Full","EP-1k5",null,null,null,null,null,null,{"$f":"SUM(C57:H57)","v":0}]
["Astra.Enterprise. 3k тегов, до 2 x I/O SRV, 1 Client Full","EP-3k",null,null,null,null,null,null,0]
["Astra.Enterprise. 5k тегов, до 2 x I/O SRV, 1 Client Full","EP-5k",null,null,null,null,null,null,0]
["Astra.Enterprise. 15k тегов, до 4 x I/O SRV, 1 Client Full","EP-15k",null,null,null,null,null,null,0]
["Astra.Enterprise. 25k тегов, до 4 x I/O SRV, 1 Client Full","EP-25k",null,null,null,null,null,null,0]
["Astra.Enterprise. 50k тегов, до 6 x I/O SRV, 1 Client Full","EP-50k",null,null,null,null,null,null,0]
["Astra.Enterprise. 100k тегов, до 8 x I/O SRV, 1 Client Full","EP-100k",null,null,null,null,null,null,0]
["Astra.Enterprise. 200k тегов, до 10 x I/O SRV, 1 Client Full","EP-200k",null,null,null,null,null,null,0]
["Astra.Enterprise. 300k тегов, до 12 x I/O SRV, 1 Client Full","EP-300k",null,null,null,null,null,null,0]
["Astra.Enterprise. 500k тегов, до 14 x I/O SRV, 1 Client Full","EP-500k",null,null,null,null,null,null,0]
["Astra.Enterprise. 1M тегов, до 24 x I/O SRV, 1 Client Full","EP-1M",null,null,null,null,null,null,0]
["Astra.Enterprise. 2M тегов, до 40 x I/O SRV, 1 Client Full","EP-2M",null,null,null,null,null,null,0]
["Astra.Enterprise. Расширение с 1k5 до 3k тегов, до 2 x I/O SRV, 1 Client Full","EP-UP3k",null,null,null,null,null,null,0]
["Astra.Enterprise. Расширение с 3k до 5k тегов, до 2 x I/O SRV, 1 Client Full","EP-UP5k",null,null,null,null,null,null,0]
["Astra.Enterprise. Расширение с 5k до 15k тегов, до 4 x I/O SRV, 1 Client Full","EP-UP15k",null,null,null,null,null,null,0]
["Astra.Enterprise. Расширение с 15k до 25k тегов, до 4 x I/O SRV, 1 Client Full","EP-UP25k",null,null,null,null,null,null,0]
["Astra.Enterprise. Расширение с 25k до 50k тегов, до 6 x I/O SRV, 1 Client Full","EP-UP50k",null,null,null,null,null,null,0]
["Astra.Enterprise. Расширение с 50k до 100k тегов, до 8 x I/O SRV, 1 Client Full","EP-UP100k",null,null,null,null,null,null,0]
["Astra.Enterprise. Расширение со 100k до 200k тегов, до 10 x I/O SRV, 1 Client Full","EP-UP200k",null,null,null,null,null,null,0]
["Astra.Enterprise. Расширение с 200k до 300k тегов, до 12 x I/O SRV, 1 Client Full","EP-UP300k",null,null,null,null,null,null,0]
["Astra.Enterprise. Расширение с 300k до 500k тегов, до 14 x I/O SRV, 1 Client Full","EP-UP500k",null,null,null,null,null,null,0]
["Astra.Enterprise. Расширение с 500k до 1M тегов, до 24 x I/O SRV, 1 Client Full","EP-UP1M",null,null,null,null,null,null,0]
["Astra.Enterprise. Расширение от 1M до 2M тегов, до 40 x I/O SRV, 1 Client Full","EP-UP2M",null,null,null,null,null,null,0]
["Plant/Enterprise.Client Full","A-CL-F",null,null,null,null,null,null,0]
["Plant/Enterprise.Client. До 10 клиентов без управления","A-CL-RO10",null,null,null,null,null,null,0]
["Plant/Enterprise.Client. До 25 клиентов без управления","A-CL-RO25",null,null,null,null,null,null,0]
["Plant/Enterprise.Client. До 50 клиентов без управления","A-CL-RO50",null,null,null,null,null,null,0]
["Plant/Enterprise.Client. До 100 клиентов без управления","A-CL-RO100",null,null,null,null,null,null,0]
["Enterprise.Client. До 250 клиентов без управления","A-CL-RO250",null,null,null,null,null,null,0]
["Enterprise.Client. Без ограничения клиентов без управления","A-CL-ROUNL",null,null,null,null,null,null,0]
["Plant/Enterprise.Client. Увеличение клиентов без управления с 10 до 25","A-CL-ROUP25",null,null,null,null,null,null,0]
["Plant/Enterprise.Client. Увеличение клиентов без управления с 25 до 50","A-CL-ROUP50",null,null,null,null,null,null,0]
["Plant/Enterprise.Client. Увеличение клиентов без управления с 50 до 100","A-CL-ROUP100",null,null,null,null,null,null,0]
["Enterprise.Client. Увеличение клиентов без управления со 100 до 250","A-CL-ROUP250",null,null,null,null,null,null,0]
["Enterprise.Client. Увеличение клиентов без управления с 250 до неограниченного количества","A-CL-ROUPUNL",null,null,null,null,null,null,0]
["Сервер Historian",null,null,null,null,null,null,null,0]
["Astra.Historian, 100 тегов","HIST-100",null,null,null,null,null,null,0]
["Astra.Historian, 200 тегов","HIST-200",null,null,null,null,null,null,0]
["Astra.Historian, 300 тегов","HIST-300",null,null,null,null,null,null,0]
["Astra.Historian, 500 тегов","HIST-500",null,null,null,null,null,null,0]
["Astra.Historian, 700 тегов","HIST-700",null,null,null,null,null,null,0]
["Astra.Historian, 1k тегов","HIST-1k",null,null,null,null,null,null,0]
["Astra.Historian, 2k тегов","HIST-2k",null,null,null,null,null,null,0]
["Astra.Historian, 3k тегов","HIST-3k",null,null,null,null,null,null,0]
["Astra.Historian, 5k тегов","HIST-5k",null,null,null,null,null,null,0]
["Astra.Historian, 7k тегов","HIST-7k",null,null,null,null,null,null,0]
["Astra.Historian, 10k тегов","HIST-10k",null,null,null,null,null,null,0]
["Astra.Historian, 15k тегов","HIST-15k",null,null,null,null,null,null,0]
["Astra.Historian, 20k тегов","HIST-20k",null,null,null,null,null,null,0]
["Astra.Historian, 30k тегов","HIST-30k",null,null,null,null,null,null,0]
["Astra.Historian, 50k тегов","HIST-50k",null,null,null,null,null,null,0]
["Astra.Historian, 100k тегов","HIST-100k",null,null,null,null,null,null,0]
["Astra.Historian, 200k тегов","HIST-200k",null,null,null,null,null,null,0]
["Astra.Historian, 300k тегов","HIST-300k",null,null,null,null,null,null,0]
["Astra.Historian, 500k тегов","HIST-500k",null,null,null,null,null,null,0]
["Alpha.Historian, 1M тегов","HIST-1M",null,null,null,null,null,null,0]
["Alpha.Historian, 2M тегов","HIST-2M",null,null,null,null,null,null,0]
["Astra.Historian. Расширение со 100 до 200 тегов","HIST-UP200",null,null,null,null,null,null,0]
["Astra.Historian. Расширение с 200 до 300 тегов","HIST-UP300",null,null,null,null,null,null,0]
["Astra.Historian. Расширение с 300 до 500 тегов","HIST-UP500",null,null,null,null,null,null,0]
["Astra.Historian. Расширение с 500 до 700 тегов","HIST-UP700",null,null,null,null,null,null,0]
["Astra.Historian. Расширение с 700 до 1k тегов","HIST-UP1k",null,null,null,null,null,null,0]
["Astra.Historian. Расширение с 1k до 2k тегов","HIST-UP2k",null,null,null,null,null,null,0]
["Astra.Historian. Расширение с 2k до 3k тегов","HIST-UP3k",null,null,null,null,null,null,0]
["Astra.Historian. Расширение с 3k до 5k тегов","HIST-UP5k",null,null,null,null,null,null,0]
["Astra.Historian. Расширение с 5k до 7k тегов","HIST-UP7k",null,null,null,null,null,null,0]
["Astra.Historian. Расширение с 7k до 10k тегов","HIST-UP10k",null,null,null,null,null,null,0]
["Astra.Historian. Расширение с 10k до 15k тегов","HIST-UP15k",null,null,null,null,null,null,0]
["Astra.Historian. Расширение с 15k до 20k тегов","HIST-UP20k",null,null,null,null,null,null,0]
["Astra.Historian. Расширение с 20k до 30k тегов","HIST-UP30k",null,null,null,null,null,null,0]
["Astra.Historian. Расширение с 30k до 50k тегов","HIST-UP50k",null,null,null,null,null,null,0]
["Astra.Historian. Расширение с 50k до 100k тегов","HIST-UP100k",null,null,null,null,null,null,0]
["Astra.Historian. Расширение с 100k до 200k тегов","HIST-UP200k",null,null,null,null,null,null,0]
["Astra.Historian. Расширение с 200k до 300k тегов","HIST-UP300k",null,null,null,null,null,null,0]
["Astra.Historian. Расширение с 300k до 500k тегов","HIST-UP500k",null,null,null,null,null,null,0]
["Astra.Historian. Расширение с 500k до 1M тегов","HIST-UP1M",null,null,null,null,null,null,0]
["Astra.Historian. Расширение с 1M до 2M тегов","HIST-UP2M",null,null,null,null,null,null,{"$f":"SUM(C133:H133)","v":0}]
["Ключи для хранения лицензий",null,null,null,null,null,null,null,0]
["Аппаратный ключ защиты","A-KEY-USB",null,null,null,null,null,null,{"$f":"SUM(C135:H135)","v":0}]
["Программный ключ защиты","A-KEY-SOFT",null,null,null,null,null,null,0]
["Услуга по переносу лицензий между аппаратным и программным ключом","A-KEY-MOVE",null,null,null,null,null,null,{"$f":"SUM(C137:H137)","v":0}]
["Коммуникационные протоколы (доп. пакеты)",null,null,null,null,null,null,null,0]
["Дополнительный пакет драйверов IEC 61850 Client, ТЭМ-104 Master для Astra.Local","DRV-ENERG",null,null,null,null,null,null,{"$f":"SUM(C139:H139)","v":0}]
["Дополнительный пакет драйверов BACnet, S7 Client, Ethernet/IP, FINS Client для Astra.Local / Astra.Plant","DRV-INDUSTRY",null,null,null,null,null,null,0]
["Лицензия внешнего (дополнительного Windows ПК) OPC DA Client для Astra.Local / Plant / Enterprise","A-DRV-OPCDA-CL",null,null,null,null,null,null,0]
["Лицензия внешнего (дополнительного Windows ПК) OPC DA Server для Astra.Local / Plant / Enterprise","A-DRV-OPCDA-SRV",null,null,null,null,null,null,0]
["Лицензия Regul HART Communication для организации \"сквозного\" доступа к \"полевым\" устройствам, подключенным к модулям ПЛК Regul RX00. Для работы с КИПиА требуется дополнительно установить PACTware и использовать DTM-файлы производителей КИПиА","DRV-HART-COM",null,null,null,null,null,null,0]
["WEBportal - Лицензия на отдельный сервер для организации WEB-доступа к Plant/Enterprise",null,null,null,null,null,null,null,0]
["Лицензия на право WEB-доступа к серверам Plant и Enterprise (для организации передачи данных через WEB требуется дополнительно установить WEB-сервер IIS, Apache и т.д. ). Требуется наличие соответствующих клиентских лицензий!","A-WEB-PORTAL",null,null,null,null,null,null,{"$f":"SUM(C145:H145)","v":0}]
["Средства разработки",null,null,null,null,null,null,null,0]
["Пакет разработки проектов и конфигурирования IO Server и Historian","A.Studio",null,null,null,null,null,null,{"$f":"SUM(C147:H147)","v":0}]
["Пакет разработки проектов и конфигурирования ПЛК","Astra.IDE",null,null,null,null,null,null,{"$f":"SUM(C148:H148)","v":0}]
["Alpha Reports",null,null,null,null,null,null,null,0]
["Alpha.Reports\nСистема построения отчетов",null,null,null,null,null,null,null,0]
["Alpha.Reports Pro для 50 тегов","RPT-E50",null,null,null,null,null,null,{"$f":"SUM(C151:H151)","v":0}]
["Alpha.Reports Pro для 100 тегов","RPT-E100",null,null,null,null,null,null,{"$f":"SUM(C152:H152)","v":0}]
["Alpha.Reports Pro для 250 тегов","RPT-E250",null,null,null,null,null,null,0]
["Alpha.Reports Pro для 500 тегов","RPT-E500",null,null,null,null,null,null,0]
["Alpha.Reports Pro для 1k тегов","RPT-E1k",null,null,null,null,null,null,0]
["Alpha.Reports Pro для 2k тегов","RPT-E2k",null,null,null,null,null,null,0]
["Alpha.Reports Pro для 5k тегов","RPT-E5k",null,null,null,null,null,null,0]
["Alpha.Reports Pro для 10k тегов","RPT-E10k",null,null,null,null,null,null,0]
["Alpha.Reports Pro безлимитный","RPT-EUNL",null,null,null,null,null,null,0]
["Alpha.Reports Pro увеличение до 100 тегов","RPT-E-UP100",null,null,null,null,null,null,0]
["Alpha.Reports Pro увеличение до 250 тегов","RPT-E-UP250",null,null,null,null,null,null,0]
["Alpha.Reports Pro увеличение до 500 тегов","RPT-E-UP500",null,null,null,null,null,null,0]
["Alpha.Reports Pro увеличение до 1k тегов","RPT-E-UP1k",null,null,null,null,null,null,{"$f":"SUM(C163:H163)","v":0}]
["Alpha.Reports Pro увеличение до 2k тегов","RPT-E-UP2k",null,null,null,null,null,null,0]
["Alpha.Reports Pro увеличение до 5k тегов","RPT-E-UP5k",null,null,null,null,null,null,0]
["Alpha.Reports Pro увеличение до 10k тегов","RPT-E-UP10k",null,null,null,null,null,null,0]
["Alpha.Reports Pro увеличение до безлимитной","RPT-E-UPUNL",null,null,null,null,null,null,0]
["Alpha.Reports. Клиент. Конкурентное подключение 1 пользователь","RPT-CL1",null,null,null,null,null,null,0]
["Alpha.Reports. Клиент. Конкурентное подключение 5 пользователей","RPT-CL5",null,null,null,null,null,null,{"$f":"SUM(C169:H169)","v":0}]
["Alpha.Reports. Клиент. Конкурентное подключение 10 пользователей","RPT-CL10",null,null,null,null,null,null,0]
["Alpha.Reports. Клиент. Конкурентное подключение 25 пользователей","RPT-CL25",null,null,null,null,null,null,0]
["Alpha.Reports. Клиент. Конкурентное подключение 50 пользователей","RPT-CL50",null,null,null,null,null,null,0]
["Alpha.Reports. Клиент. Конкурентное подключение 100 пользователей","RPT-CL100",null,null,null,null,null,null,0]
[null,null,null,null,null,null,null,null,1]

{"sheet":"История изменений","index":3,"n_rows":33,"n_cols":4,"rows_kept":33,"cut":false,"hidden":false,"merged":[[22,0,32,0],[2,0,4,0],[6,0,8,0],[9,0,10,0],[12,0,15,0],[16,0,21,0]]}
["Дата","Изменение","Замена на аналог\n(при наличии)","Примечание"]
["с 01.01.2023 г.","Удален модуль R500 AI 08 051-000-AAA","Равноправная замена на модуль R500 AI 08 052-000-AAA (CAA)","Причина: снятие с производства модулей R500 AI 08 051"]
["с 01.07.2023 г.","Удален модуль R500 AI 08 041-000-AAA","Равноправная замена на модуль R500 AI 08 042-000-AAA (CAA)","Причина: снятие с производства модулей R500 AI 08 041"]
[null,"Удален модуль R500 CH 02 022-000-AAA","Равноправная замена на модуль R500 CH 02 023-000-AAA (CAA)","Причина: снятие с производства модулей R500 CH 02 022"]
[null,"Временно удален модуль R500 DI 32 012-000-AAA","Равноправная замена на модуль R500 DI 32 011-000-AAA (CAA)","Причина: начало производства R500 DI 32 012 планируется в 1 кв. 2024 г."]
["с 11.08.2023 г.","Добавлены модификации модулей CU:\nR500 CU 00 051-009-AAA\nR500 CU 00 061-009-AAA \nR500 CU 00 071-009-AAA\nR500 CU 00 051(W)-009-AAA\nR500 CU 00 061(W)-009-AAA\nR500 CU 00 071(W)-009-AAA\nR500 CU 00 051-013-AAA\nR500 CU 00 061-013-AAA\nR500 CU 00 071-013-AAA\nR500 CU 00 051(W)-013-AAA\nR500 CU 00 061(W)-013-AAA\nR500 CU 00 071(W)-013-AAA",null,"Причина: для обеспечения возможности заказа добавлены модули без встроенного GPS / ГЛОНАСС - приёмника"]
["с 24.08.2023 г.","Добавлен модуль R500 CP 01 031-000-AAA"]
[null,"Добавлены модификации модулей CU:\nR500 CU 00 051-010-AAA - R500 CU 00 051-016-AAA\nR500 CU 00 061-010-AAA  - R500 CU 00 061-016-AAA \nR500 CU 00 071-010-AAA - R500 CU 00 071-016-AAA\nR500 CU 00 051(W)-010-AAA - R500 CU 00 051(W)-016-AAA\nR500 CU 00 061(W)-010-AAA - R500 CU 00 061(W)-016-AAA\nR500 CU 00 071(W)-010-AAA - R500 CU 00 071(W)-016-AAA",null,"Причина: для обеспечения возможности заказа добавлены модули без встроенного GPS / ГЛОНАСС - приёмника"]
[null,"Изменен порядок строк у модулей CPU R500",null,"Причина: рекомендуется в базовом исполнении заказывать модули без встроенного GPS / ГЛОНАСС - приёмника"]
["с 01.09.2023 г.","Для модуля R500S DO 16 811-000-AAA откорректировано описание","-","Гальваноизоляция каналов модуля является общей"]
[null,"Для модулей R500S CU 00 851-000 (001)-AAA откорректировано токопотребление от внутр. шины ПЛК","-"]
["с 05.09.2023 г.","Откорректирована формула подсчета шасси на листе \"R400, R500\"","-"]
["с 09.11.2023 г.","Удален модуль R500 DI 32 011-000-AAA","Равноправная замена на модуль R500 DI 32 012-000-AAA","Причина: снятие с производства модулей R500 DI 32 011-000-AAA"]
[null,"Удален модуль R500 DI 32 111-000-AAA","Равноправная замена на модуль R500 DI 32 012-000-AAA","Причина: запуск в серийное производство R500 DI 32 012-000-AAA"]
[null,"Удален модуль R500 ST 02 111-000-AAA","Равноправная замена на модуль R500 ST 02 113-000-AAA","Причина: снятие с производства модулей R500 ST 02 111-000-AAA"]
[null,"Удален модуль R500 ST 02 121-000-AAA","Равноправная замена на модуль R500 ST 02 123-000-AAA","Причина: снятие с производства модулей R500 ST 02 121-000-AAA"]
["с 26.01.2024 г.","На листе R500S удалена модификация модуля R500S CU 00 851-001-AAA с GPS/ГЛОНАСС-приемником","Предлагаемая замена: R500S CU 00 851-000-AAA","Отсутствие востребованности такого исполнения ЦПУ у Заказчиков, отсутствие требований в системах ПАЗ к данному функционалу"]
[null,"Добалена поддержка Syslog Client для Astra.Server"]
[null,"Добавлены лицензии A-CL-RO50 и A-CL-ROUP50"]
[null,"В состав лицензии EP-IOSRV добавлена лицензия Astra.WEBportal"]
[null,"Удалены лицензии Astra.Enterprise Lite","Необходимо использовать лицензии Astra.Enterprise"]
[null,"Добавлены лицензии Alpha.Reports для построения отчетов"]
["с 08.04.2024 г.","Удален модуль R500 CH 02 011-000-AAA","Равноправная замена на модуль R500 CH 02 012-000-AAA","Причина: снятие с производства модулей R500 CH 02 011-000-AAA"]
[null,"Для модуля R500 CH 02 811-000-AAA откорректировано описание ",null,"В крейтах R500 модули R500 CH 02 811-000-AAA должны применяться только совместно с модулями R500 СР 06 111-000-AAA. Для остальных модулей в/в или модулей PP в крейтах R500 следует применять модули R500 CH 02 012-000-AAA"]
[null,"Удален модуль R500 ST 01 012-000-AAA","Равноправная замена на модуль R500 ST 01 013-000-AAA","Причина: снятие с производства модулей R500 ST 01 012-000-AAA"]
[null,"Удален модуль R500 ST 01 022-000-AAA","Равноправная замена на модуль R500 ST 01 023-000-AAA","Причина: снятие с производства модулей R500 ST 01 022-000-AAA"]
[null,"Удален модуль R500 ST 02 012-000-AAA","Равноправная замена на модуль R500 ST 02 013-000-AAA","Причина: снятие с производства модулей R500 ST 02 012-000-AAA"]
[null,"Удален модуль R500 ST 02 022-000-AAA","Равноправная замена на модуль R500 ST 02 023-000-AAA","Причина: снятие с производства модулей R500 ST 02 022-000-AAA"]
[null,"Откорректировано описание для модулей R500 ST 02 113/123-000-AAA"]
[null,"Откорректированы формулы для подсчета ширины и энергопотребления модулей ST 0x 0x3"]
[null,"Откорректирована формула для посчета количества тегов - \"Сигналы DA\""]
[null,"Уточнено описание пакета драйверов DRV-INDUSTRY"]
[null,"В пакет лицензий Enterprise AstraRegul включены драйвера BACnet, S7 Client, Ethernet/IP, FINS Client"]